{"text_format":"1","workbook":"xlsx","n_sheets":19,"sheets":["注意事項等","質疑等連絡票","計画書","計画通知書","２面","その他の申請者","３面","４面","５面","６面","７面","別紙","設内（モデル）","設内（標準）","設内（住宅）","中表紙（計算書用）","中表紙（計算補足資料）","変更計画書","計画変更通知書"],"not_rendered":{"charts":0,"images":0,"macros":1,"external_links":0,"defined_names":19,"comments":3,"pivot_tables":0},"unopened":[],"bounds":{"document_bytes":16777216,"sheet_cells":100000,"rows_first":2000,"rows_last":500,"rows_between":2000,"halvings":0,"cell_chars":16384,"cell_head_chars":4096},"cells_cut":0,"cells_raw":0,"read":"whole","date_system":"1900"}

{"sheet":"注意事項等","index":0,"n_rows":18,"n_cols":4,"rows_kept":18,"cut":false,"hidden":false,"merged":[[13,1,13,8],[7,1,7,8]]}
[]
[null,"入力にあたっての注意事項"]
[]
[null,"・赤色、橙色のシートは提出必須（赤は案件に合わせいずれか）となります。"]
[]
[null,"・青色のシートは『住宅・非住宅複合建築物』の場合に御提出ください。"]
[]
[null,"・黄緑色のシートは定められた様式は御座いませんので、他の様式を\n　お持ちでない場合にご利用ください。"]
[]
[null,"・紫色のシートは省エネ計画の変更の際に計画書に替えて御提出ください。"]
[]
[null,"・黄色の網掛け部分に文字等を入力していください。"]
[]
[null,"・□については、該当箇所をクリックするとチェックされます。\n  チェックされた部分をクリックするとチェックは消えます。"]
[]
[null,"・網掛け",null,"の部分の入力は不要です。"]
[]
[null,"・シート保護解除のPassWordは”0000”です。"]

{"sheet":"質疑等連絡票","index":1,"n_rows":37,"n_cols":36,"rows_kept":37,"cut":false,"hidden":false,"merged":[[35,0,35,33],[36,1,36,33],[37,1,37,33],[30,2,30,14],[30,15,30,17],[30,19,30,29],[28,1,28,3],[28,4,28,14],[28,15,28,17],[28,19,28,29],[29,1,29,3],[29,5,29,14],[29,15,29,17],[29,19,29,29],[22,2,22,14],[22,15,22,17],[22,19,22,29],[26,1,27,3],[26,4,27,14],[26,15,26,17],[26,19,26,29],[27,15,27,17],[27,19,27,29],[18,19,18,29],[19,15,19,17],[19,19,19,29],[20,1,20,3],[20,4,20,14],[20,15,20,17],[20,19,20,29],[12,1,12,3],[12,5,12,14],[12,15,12,17],[12,19,12,29],[21,1,21,3],[21,5,21,14],[21,15,21,17],[21,19,21,29],[13,2,13,14],[13,15,13,17],[13,19,13,29],[14,1,15,5],[15,6,15,29],[18,1,19,3],[18,4,19,14],[18,15,18,17],[1,0,1,29],[4,1,4,6],[4,7,4,29],[5,1,5,6],[5,7,5,29],[6,1,6,6],[6,7,6,29],[32,0,32,11],[32,12,32,14],[32,16,32,17],[32,19,32,20],[9,1,10,3],[9,4,10,14],[9,15,9,17],[9,19,9,29],[10,15,10,17],[10,19,10,29],[11,1,11,3],[11,4,11,14],[11,15,11,17],[11,19,11,29]]}
[]
["省エネ適合性判定　質疑等連絡先シート",null,null,null,null,null,null,null,null,null,null,null,null,null,null,null,null,null,null,null,null,null,null,null,null,null,null,null,null,null,null,null,"申請の際は当シートも必ず添付してください。"]
[]
["○建築物の概要"]
[null,"建築物の名称"]
[null,"建　築　主　名",null,null,null,null,null,{"$f":"IF('２面'!AU6=0,\"申請書2面を記入して下さい\",'２面'!AV8)","v":"申請書2面を記入して下さい"}]
[null,"建築物の所在地",null,null,null,null,null,{"$f":"IF('３面'!J5=0,\"申請書3面を記入して下さい\",'３面'!J5)","v":"申請書3面を記入して下さい"}]
[]
["●判定料金請求書の送付先"]
[null,"会社名",null,null,null,null,null,null,null,null,null,null,null,null,null,"フリガナ",null,null,null,{"$f":"ASC(PHONETIC(T11))","v":""}]
[null,null,null,null,null,null,null,null,null,null,null,null,null,null,null,"氏　名"]
[null,"所　属",null,null,null,null,null,null,null,null,null,null,null,null,null,"TEL"]
[null,"住　所",null,null,"〒",null,null,null,null,null,null,null,null,null,null,"FAX"]
[null,null,null,null,null,null,null,null,null,null,null,null,null,null,null,"E-mail"]
[null,"請求書名宛先"]
[]
[]
["●質疑書"]
[null,"会社名",null,null,null,null,null,null,null,null,null,null,null,null,null,"フリガナ",null,null,null,{"$f":"ASC(PHONETIC(T20))","v":""}]
[null,null,null,null,null,null,null,null,null,null,null,null,null,null,null,"氏　名"]
[null,"所　属",null,null,null,null,null,null,null,null,null,null,null,null,null,"TEL"]
[null,"住　所",null,null,"〒",null,null,null,null,null,null,null,null,null,null,"FAX"]
[null,null,null,null,null,null,null,null,null,null,null,null,null,null,null,"E-mail"]
[]
["●判定通知書・副本等の返送先"]
[]
[null,"会社名",null,null,null,null,null,null,null,null,null,null,null,null,null,"フリガナ",null,null,null,{"$f":"ASC(PHONETIC(T28))","v":""}]
[null,null,null,null,null,null,null,null,null,null,null,null,null,null,null,"氏　名"]
[null,"所　属",null,null,null,null,null,null,null,null,null,null,null,null,null,"TEL"]
[null,"住　所",null,null,"〒",null,null,null,null,null,null,null,null,null,null,"FAX"]
[null,null,null,null,null,null,null,null,null,null,null,null,null,null,null,"E-mail",null,null,null,null,null,null,null,null,null,null,null,null,null,null,null,null,null,null,null,"上旬"]
[null,null,null,null,null,null,null,null,null,null,null,null,null,null,null,null,null,null,null,null,null,null,null,null,null,null,null,null,null,null,null,null,null,null,null,"中旬"]
["●判定通知書の交付希望時期",null,null,null,null,null,null,null,null,null,null,null,null,null,null,"年",null,null,"月",null,null,"頃",null,null,null,null,null,null,null,null,null,null,null,null,null,"下旬"]
[]
[]
["（注意）"]
[null,"　１．各連絡先、送付先及び判定通知書の交付ご希望時期（予定）をご記入の上、申請書と併せて御提出ください。"]

{"sheet":"計画書","index":2,"n_rows":33,"n_cols":34,"rows_kept":33,"cut":false,"hidden":false,"merged":[[0,0,0,33],[31,0,31,33],[1,0,1,33],[14,19,14,32],[16,20,16,32],[24,1,24,12],[25,2,25,10],[5,31,5,32],[10,20,10,32],[5,25,5,26],[7,0,7,13],[5,28,5,29],[3,0,3,33],[12,20,12,32],[23,25,23,32],[23,13,23,24],[33,1,33,33],[18,1,20,32],[11,19,11,32],[13,20,13,32],[15,20,15,32],[32,1,32,33],[23,1,23,12],[24,13,24,24]]}
["様式第一（第一条第一項関係）（日本工業規格Ａ列４番）"]
["（第一面）"]
[]
["計画書"]
[]
[null,null,null,null,null,null,null,null,null,null,null,null,null,null,null,null,null,null,null,null,null,null,null,null,"令和",null,null,"年",null,null,"月",null,null,"日"]
[]
["一般財団法人ベターリビング　殿"]
[]
[null,null,null,null,null,null,null,null,null,null,null,null,null,null,null,null,null,null,null,"提出者の住所又は主たる事務所の所在地"]
[]
[null,null,null,null,null,null,null,null,null,null,null,null,null,null,null,null,null,null,null,"提出者の氏名又は名称\n代表者の氏名"]
[]
[]
[null,null,null,null,null,null,null,null,null,null,null,null,null,null,null,null,null,null,null,"設計者氏名"]
[null,null,null,null,null,null,null,null,null,null,null,null,null,null,null,null,null,null,null,null,{"$f":"IF('２面'!M21=\"\",\"２面を記入して下さい\",'２面'!L23)","v":"２面を記入して下さい"}]
[null,null,null,null,null,null,null,null,null,null,null,null,null,null,null,null,null,null,null,null,{"$f":"IF('２面'!M21=\"\",\"２面を記入して下さい\",'２面'!M21)","v":"２面を記入して下さい"}]
[]
[null,"　建築物のエネルギー消費性能の向上に関する法律第12条第１項（同法第15条第２項の規定により読み替えて適用される場合を含む。）の規定により、建築物エネルギー消費性能確保計画を提出します。この計画書及び添付図書に記載の事項は、事実に相違ありません。"]
[]
[]
[]
[null,"（本欄には記入しないでください。）"]
[null,"受付欄",null,null,null,null,null,null,null,null,null,null,null,"適合判定通知書番号欄",null,null,null,null,null,null,null,null,null,null,null,"決済欄"]
[null,"年　　月　　日",null,null,null,null,null,null,null,null,null,null,null,"年　　月　　日"]
[null,null,"第 CBL-SH-",null,null,null,null,null,null,null,null,"号",null,null,"第",null,null,null,null,null,null,null,null,"号"]
[null,null,"係員印",null,null,null,null,null,null,null,null,null,null,null,"係員印"]
[]
[]
[]
[]
["（注意）"]
[null,"　１．提出者が法人である場合には、代表者の氏名を併せて記載してください。"]

{"sheet":"計画通知書","index":3,"n_rows":36,"n_cols":36,"rows_kept":36,"cut":false,"hidden":false,"merged":[[9,24,9,32],[5,25,5,26],[7,0,7,12],[14,20,14,32],[24,25,24,32],[16,20,16,32],[0,0,0,33],[1,0,1,33],[3,0,3,33],[5,28,5,29],[5,31,5,32],[36,1,36,33],[11,28,11,29],[11,31,11,32],[17,20,17,32],[19,1,21,32],[24,1,24,12],[24,13,24,24],[11,25,11,26],[32,0,32,33],[13,20,13,32],[26,2,26,10],[25,1,25,12],[25,13,25,24]]}
["様式第十一（第七条第一項関係）（日本工業規格Ａ列４番）"]
["（第一面）"]
[]
["建築物のエネルギー消費性能の向上に関する法律第13条第２項の規定による計画通知書"]
[]
[null,null,null,null,null,null,null,null,null,null,null,null,null,null,null,null,null,null,null,null,null,null,null,null,{"$f":"計画書!Y6","v":"令和"},null,null,"年",null,null,"月",null,null,"日",null,"申請年月日"]
[]
["一般財団法人ベターリビング　殿"]
[]
[null,null,null,null,null,null,null,null,null,null,null,null,null,null,null,null,null,null,null,null,null,null,null,"第",null,null,null,null,null,null,null,null,null,"号",null,"文書管理番号（ある場合のみ記入）"]
[]
[null,null,null,null,null,null,null,null,null,null,null,null,null,null,null,null,null,null,null,null,null,null,null,null,{"$f":"計画書!Y6","v":"令和"},null,null,"年",null,null,"月",null,null,"日",null,"文書管理番号の発番日（ある場合のみ記入）"]
[]
[null,null,null,null,null,null,null,null,null,null,null,null,null,null,null,null,null,null,null,"通知者官職"]
[]
[]
[null,null,null,null,null,null,null,null,null,null,null,null,null,null,null,null,null,null,null,"設計者氏名",{"$f":"IF('２面'!M21=\"\",\"２面を記入して下さい\",'２面'!L23)","v":"２面を記入して下さい"}]
[null,null,null,null,null,null,null,null,null,null,null,null,null,null,null,null,null,null,null,null,{"$f":"IF('２面'!M21=\"\",\"２面を記入して下さい\",'２面'!M21)","v":"２面を記入して下さい"}]
[]
[null,"　建築物のエネルギー消費性能の向上に関する法律第13条第２項（同法第15条第２項の規定により読み替えて適用される場合を含む。）の規定により、建築物エネルギー消費性能確保計画を通知します。"]
[]
[]
[]
[null,"（本欄には記入しないでください。）"]
[null,"受付欄",null,null,null,null,null,null,null,null,null,null,null,"適合判定通知書番号欄",null,null,null,null,null,null,null,null,null,null,null,"決済欄"]
[null,"年　　月　　日",null,null,null,null,null,null,null,null,null,null,null,"年　　月　　日"]
[null,null,"第 CBL-SH-",null,null,null,null,null,null,null,null,"号",null,null,"第",null,null,null,null,null,null,null,null,"号"]
[null,null,"係員印",null,null,null,null,null,null,null,null,null,null,null,"係員印"]
[]
[]
[]
[]
["（注意）"]
["　１.第二面から第七面までとして別記様式第一の第二面から第七面までに記載すべき事項を記載"]
["　　した書類を添えてください。"]
["　２.別記様式第一の（注意）に準じて記入してください。"]

{"sheet":"２面","index":4,"n_rows":78,"n_cols":55,"rows_kept":78,"cut":false,"hidden":false,"merged":[[48,41,52,42],[13,11,13,38],[22,11,22,38],[31,11,31,38],[40,11,40,38],[49,11,49,38],[52,11,52,38],[47,12,47,38],[41,11,41,38],[42,11,42,38],[43,11,43,38],[35,11,35,38],[37,12,37,13],[44,11,44,38],[46,12,46,13],[46,21,46,27],[46,33,46,37],[19,41,26,42],[30,41,34,42],[39,41,43,42],[56,12,56,37],[58,2,59,38],[48,12,48,13],[48,21,48,27],[48,33,48,37],[50,11,50,38],[51,11,51,38],[53,11,53,38],[55,12,55,37],[37,21,37,27],[37,33,37,37],[38,12,38,38],[39,12,39,13],[39,21,39,27],[39,33,39,37],[34,11,34,38],[25,11,25,38],[26,11,26,38],[28,12,28,13],[28,21,28,27],[28,33,28,37],[29,12,29,38],[30,12,30,13],[30,21,30,27],[30,33,30,37],[32,11,32,38],[33,11,33,38],[21,21,21,27],[21,33,21,37],[23,11,23,38],[24,11,24,38],[21,12,21,13],[10,12,10,13],[10,21,10,27],[12,33,12,37],[10,33,10,37],[11,12,11,38],[61,0,61,35],[15,11,15,38],[16,11,16,38],[0,0,0,40],[20,12,20,38],[19,12,19,13],[19,21,19,27],[19,33,19,37],[4,11,4,38],[5,11,5,38],[14,11,14,38],[6,11,6,38],[12,12,12,13],[12,21,12,27],[7,11,7,38],[8,11,8,38]]}
["(第二面)"]
[]
[null,"[建築主等に関する事項]"]
[null,"【1.建築主】"]
[null,null,"【イ.氏名のフリガナ】",null,null,null,null,null,null,null,null,{"$f":"ASC(PHONETIC(L6))","v":""}]
[null,null,"【ロ.氏名】",null,null,null,null,null,null,null,null,null,null,null,null,null,null,null,null,null,null,null,null,null,null,null,null,null,null,null,null,null,null,null,null,null,null,null,null,null,null,null,null,{"$f":"IF(L6=\"\",0,1)","v":0},{"$f":"IF(その他の申請者!L6=\"\",0,1)","v":0},{"$f":"IF(その他の申請者!L12=\"\",0,1)","v":0},{"$f":"AR6+AS6+AT6","v":0},{"$f":"IF(AU6=1,AR7,\"\")","v":""}]
[null,null,"【ハ.郵便番号】",null,null,null,null,null,null,null,null,null,null,null,null,null,null,null,null,null,null,null,null,null,null,null,null,null,null,null,null,null,null,null,null,null,null,null,null,null,null,null,null,{"$f":"L6","v":0},{"$f":"IF(その他の申請者!L6=\"\",\"\",その他の申請者!L6)","v":""},{"$f":"IF(その他の申請者!L12=\"\",\"\",その他の申請者!L12)","v":""},null,{"$f":"IF(AU6>1,AR7&\"　他 \",\"\")","v":""}]
[null,null,"【ニ.住所】",null,null,null,null,null,null,null,null,null,null,null,null,null,null,null,null,null,null,null,null,null,null,null,null,null,null,null,null,null,null,null,null,null,null,null,null,null,null,null,null,null,null,null,null,{"$f":"AV6&AV7","v":""}]
[null,null,"【ホ.電話番号】"]
[null,"【2.代理者】"]
[null,null,"【イ.資格】",null,null,null,null,null,null,null,null,"（",null,null,"）","建築士",null,null,null,null,"（",null,null,null,null,null,null,null,"）","登録",null,null,null,null,null,null,null,null,"号"]
[null,null,"【ロ.氏名】"]
[null,null,"【ハ.建築士事務所名】",null,null,null,null,null,null,null,null,"（",null,null,"）","建築士事務所",null,null,null,null,"（",null,null,null,null,null,null,null,"）","知事登録",null,null,null,null,null,null,null,null,"号"]
[]
[null,null,"【ニ.郵便番号】"]
[null,null,"【ホ.所在地】"]
[null,null,"【ヘ.電話番号】"]
[null,"【3.設計者等】"]
[null,"（代表となる設計者）"]
[null,null,"【イ.資格】",null,null,null,null,null,null,null,null,"（",null,null,"）","建築士",null,null,null,null,"（",{"$f":"IF($BC$25=1,V11,\"\")","v":""},null,null,null,null,null,null,"）","登録",null,null,null,{"$f":"IF($BC$25=1,AH11,\"\")","v":""},null,null,null,null,"号"]
[null,null,"【ロ.氏名】",null,null,null,null,null,null,null,null,null,{"$f":"IF($BC$25=1,M12,\"\")","v":""}]
[null,null,"【ハ.建築士事務所名】",null,null,null,null,null,null,null,null,"（",null,null,"）","建築士事務所",null,null,null,null,"（",{"$f":"IF($BC$25=1,V13,\"\")","v":""},null,null,null,null,null,null,"）","知事登録",null,null,null,{"$f":"IF($BC$25=1,AH13,\"\")","v":""},null,null,null,null,"号"]
[null,null,null,null,null,null,null,null,null,null,null,{"$f":"IF($BC$25=1,L14,\"\")","v":""}]
[null,null,"【ニ.郵便番号】",null,null,null,null,null,null,null,null,{"$f":"IF($BC$25=1,L15,\"\")","v":""}]
[null,null,"【ホ.所在地】",null,null,null,null,null,null,null,null,{"$f":"IF($BC$25=1,L16,\"\")","v":""},null,null,null,null,null,null,null,null,null,null,null,null,null,null,null,null,null,null,null,null,null,null,null,null,null,null,null,null,null,null,null,null,null,null,null,null,null,null,null,null,null,false,{"$f":"BB25*1","v":0}]
[null,null,"【ヘ.電話番号】",null,null,null,null,null,null,null,null,{"$f":"IF($BC$25=1,L17,\"\")","v":""}]
[null,null,"【ト.作成した設計図書】"]
[null,"（その他の設計者）"]
[null,null,"【イ.資格】",null,null,null,null,null,null,null,null,"（",null,null,"）","建築士",null,null,null,null,"（",null,null,null,null,null,null,null,"）","登録",null,null,null,null,null,null,null,null,"号"]
[null,null,"【ロ.氏名】"]
[null,null,"【ハ.建築士事務所名】",null,null,null,null,null,null,null,null,"（",null,null,"）","建築士事務所",null,null,null,null,"（",{"$f":"IF($BC$33=1,V22,\"\")","v":""},null,null,null,null,null,null,"）","知事登録",null,null,null,{"$f":"IF($BC$33=1,AH22,\"\")","v":""},null,null,null,null,"号"]
[null,null,null,null,null,null,null,null,null,null,null,{"$f":"IF($BC$33=1,L23,\"\")","v":""}]
[null,null,"【ニ.郵便番号】",null,null,null,null,null,null,null,null,{"$f":"IF($BC$33=1,L24,\"\")","v":""},null,null,null,null,null,null,null,null,null,null,null,null,null,null,null,null,null,null,null,null,null,null,null,null,null,null,null,null,null,null,null,null,null,null,null,null,null,null,null,null,null,false,{"$f":"BB33*1","v":0}]
[null,null,"【ホ.所在地】",null,null,null,null,null,null,null,null,{"$f":"IF($BC$33=1,L25,\"\")","v":""}]
[null,null,"【ヘ.電話番号】",null,null,null,null,null,null,null,null,{"$f":"IF($BC$33=1,L26,\"\")","v":""}]
[null,null,"【ト.作成した設計図書】"]
[]
[null,null,"【イ.資格】",null,null,null,null,null,null,null,null,"（",null,null,"）","建築士",null,null,null,null,"（",null,null,null,null,null,null,null,"）","登録",null,null,null,null,null,null,null,null,"号"]
[null,null,"【ロ.氏名】"]
[null,null,"【ハ.建築士事務所名】",null,null,null,null,null,null,null,null,"（",null,null,"）","建築士事務所",null,null,null,null,"（",{"$f":"IF($BC$42=1,V31,\"\")","v":""},null,null,null,null,null,null,"）","知事登録",null,null,null,{"$f":"IF($BC$42=1,AH31,\"\")","v":""},null,null,null,null,"号"]
[null,null,null,null,null,null,null,null,null,null,null,{"$f":"IF($BC$42=1,L32,\"\")","v":""}]
[null,null,"【ニ.郵便番号】",null,null,null,null,null,null,null,null,{"$f":"IF($BC$42=1,L33,\"\")","v":""},null,null,null,null,null,null,null,null,null,null,null,null,null,null,null,null,null,null,null,null,null,null,null,null,null,null,null,null,null,null,null,null,null,null,null,null,null,null,null,null,null,false,{"$f":"BB42*1","v":0}]
[null,null,"【ホ.所在地】",null,null,null,null,null,null,null,null,{"$f":"IF($BC$42=1,L34,\"\")","v":""}]
[null,null,"【ヘ.電話番号】",null,null,null,null,null,null,null,null,{"$f":"IF($BC$42=1,L35,\"\")","v":""}]
[null,null,"【ト.作成した設計図書】"]
[]
[null,null,"【イ.資格】",null,null,null,null,null,null,null,null,"（",null,null,"）","建築士",null,null,null,null,"（",null,null,null,null,null,null,null,"）","登録",null,null,null,null,null,null,null,null,"号"]
[null,null,"【ロ.氏名】"]
[null,null,"【ハ.建築士事務所名】",null,null,null,null,null,null,null,null,"（",null,null,"）","建築士事務所",null,null,null,null,"（",{"$f":"IF($BC$51=1,V40,\"\")","v":""},null,null,null,null,null,null,"）","知事登録",null,null,null,{"$f":"IF($BC$51=1,AH40,\"\")","v":""},null,null,null,null,"号"]
[null,null,null,null,null,null,null,null,null,null,null,{"$f":"IF($BC$51=1,L41,\"\")","v":""}]
[null,null,"【ニ.郵便番号】",null,null,null,null,null,null,null,null,{"$f":"IF($BC$51=1,L42,\"\")","v":""},null,null,null,null,null,null,null,null,null,null,null,null,null,null,null,null,null,null,null,null,null,null,null,null,null,null,null,null,null,null,null,null,null,null,null,null,null,null,null,null,null,false,{"$f":"BB51*1","v":0}]
[null,null,"【ホ.所在地】",null,null,null,null,null,null,null,null,{"$f":"IF($BC$51=1,L43,\"\")","v":""}]
[null,null,"【ヘ.電話番号】",null,null,null,null,null,null,null,null,{"$f":"IF($BC$51=1,L44,\"\")","v":""}]
[null,null,"【ト.作成した設計図書】"]
[null,"【4.確認の申請】"]
[null,null,null,null,null,null,null,null,null,null,null,"（",null,null,null,null,null,null,null,null,null,null,null,null,null,null,null,null,null,null,null,null,null,null,null,null,null,null,"）"]
[null,null,null,null,null,null,null,null,null,null,null,"（",null,null,null,null,null,null,null,null,null,null,null,null,null,null,null,null,null,null,null,null,null,null,null,null,null,null,"）"]
[null,"【5.備考】"]
[null,null,{"$f":"IF(質疑等連絡票!H5=\"\",\"\",質疑等連絡票!H5)","v":""}]
[]
[]
["（注意）"]
[null,"１．建築主が２者以上の場合は、【１．建築主】の欄は代表となる建築主について記入し、別紙に他の建築主について記入して"]
[null,null,"添えてください。"]
[null,"２．【１．建築主】の欄は、建築主が法人の場合は、「イ」は法人の名称及び代表者の氏名のフリガナを、「ロ」は法人の名称及び"]
[null,null,"代表者の氏名を、「ニ」は法人の所在地を、建築主がマンションの管理を行う建物の区分所有等に関する法律第３条"]
[null,null,"又は第65条に規定する団体の場合は、「イ」は団体の名称及び代表者の氏名のフリガナを、「ロ」は団体の名称及び"]
[null,null,"代表者の氏名を、「ニ」は団体の所在地を記入してください。"]
[null,"３．【２．代理者】の欄は、建築主からの委任を受けて提出をする場合に記入してください。"]
[null,"４．【２．代理者】及び【３．設計者】の欄は、代理者又は設計者が建築士事務所に属しているときは、その名称を書き、建築士事務所に属して"]
[null,null,"いないときは、所在地はそれぞれ代理者又は設計者の住所を書いてください。"]
[null,"５．【３．設計者】の欄は、代表となる設計者及び提出に係る建築物のエネルギー消費性能確保計画に係る他のすべての設計者について記入"]
[null,null,"してください。"]
[null,"６．【４．確認の申請】の欄は、該当するチェックボックスに「」マークを入れ、申請済の場合には、申請をした市町村若しくは都道府県名又は"]
[null,null,"指定確認検査機関の名称及び事務所の所在地を記入してください。未申請の場合には、申請する予定の市町村若しくは"]
[null,null,"都道府県名又は指定確認検査機関の名称及び事務所の所在地を記入し、申請をした後に、遅滞なく、申請をした旨"]
[null,null,"（申請先を変更した場合においては、申請をした市町村若しくは都道府県名又は指定確認検査機関の名称及び事務所の"]
[null,null,"所在地を含む。）を届け出てください。"]

{"sheet":"その他の申請者","index":5,"n_rows":73,"n_cols":12,"rows_kept":73,"cut":false,"hidden":false,"merged":[[0,0,0,38],[4,11,4,36],[5,11,5,36],[6,11,6,36],[7,11,7,36],[8,11,8,36],[56,0,56,33],[13,11,13,36],[14,11,14,36],[10,11,10,36],[11,11,11,36],[12,11,12,36]]}
["(第二面別紙)"]
[]
[null,"[建築主等に関する事項]"]
[null,"【その他の建築主】"]
[null,null,"【イ.氏名のフリガナ】",null,null,null,null,null,null,null,null,{"$f":"ASC(PHONETIC(L6))","v":""}]
[null,null,"【ロ.氏名】"]
[null,null,"【ハ.郵便番号】"]
[null,null,"【ニ.住所】"]
[null,null,"【ホ.電話番号】"]
[null,"【その他の建築主】"]
[null,null,"【イ.氏名のフリガナ】",null,null,null,null,null,null,null,null,{"$f":"ASC(PHONETIC(L12))","v":""}]
[null,null,"【ロ.氏名】"]
[null,null,"【ハ.郵便番号】"]
[null,null,"【ニ.住所】"]
[null,null,"【ホ.電話番号】"]
[]
[]
[]
[]
[]
[]
[]
[]
[]
[]
[]
[]
[]
[]
[]
[]
[]
[]
[]
[]
[]
[]
[]
[]
[]
[]
[]
[]
[]
[]
[]
[]
[]
[]
[]
[]
[]
[]
[]
[]
[]
["（注意）"]
[null,"１．建築主が２者以上の場合は、【１．建築主】の欄は代表となる建築主について記入し、別紙に他の建築主について記入して"]
[null,null,"添えてください。"]
[null,"２．【１．建築主】の欄は、建築主が法人の場合は、「イ」は法人の名称及び代表者の氏名のフリガナを、「ロ」は法人の名称及び"]
[null,null,"代表者の氏名を、「ニ」は法人の所在地を、建築主がマンションの管理を行う建物の区分所有等に関する法律第３条"]
[null,null,"又は第65条に規定する団体の場合は、「イ」は団体の名称及び代表者の氏名のフリガナを、「ロ」は団体の名称及び"]
[null,null,"代表者の氏名を、「ニ」は団体の所在地を記入してください。"]
[null,"３．【２．代理者】の欄は、建築主からの委任を受けて提出をする場合に記入してください。"]
[null,"４．【２．代理者】及び【３．設計者】の欄は、代理者又は設計者が建築士事務所に属しているときは、その名称を書き、建築士事務所に属して"]
[null,null,"いないときは、所在地はそれぞれ代理者又は設計者の住所を書いてください。"]
[null,"５．【３．設計者】の欄は、代表となる設計者及び提出に係る建築物のエネルギー消費性能確保計画に係る他のすべての設計者について記入"]
[null,null,"してください。"]
[null,"６．【４．確認の申請】の欄は、該当するチェックボックスに「」マークを入れ、申請済の場合には、申請をした市町村若しくは都道府県名又は"]
[null,null,"指定確認検査機関の名称及び事務所の所在地を記入してください。未申請の場合には、申請する予定の市町村若しくは"]
[null,null,"都道府県名又は指定確認検査機関の名称及び事務所の所在地を記入し、申請をした後に、遅滞なく、申請をした旨"]
[null,null,"（申請先を変更した場合においては、申請をした市町村若しくは都道府県名又は指定確認検査機関の名称及び事務所の"]
[null,null,"所在地を含む。）を届け出てください。"]

{"sheet":"３面","index":6,"n_rows":46,"n_cols":42,"rows_kept":46,"cut":false,"hidden":false,"merged":[[0,0,0,37],[4,9,4,36],[7,9,7,13],[10,9,10,13],[13,9,13,13],[43,0,43,33],[34,16,34,17],[34,19,34,20],[38,2,40,36],[16,13,16,15],[16,23,16,25],[25,9,25,15],[25,20,25,26],[28,11,28,13],[31,16,31,17],[31,12,31,14],[34,12,34,14],[31,19,31,20],[18,7,20,37],[21,7,23,37]]}
["(第三面)"]
[]
[null,"[建築物及びその敷地に関する事項]"]
[]
[null,"【1.地名地番】"]
[]
[]
[null,"【2.敷地面積】",null,null,null,null,null,null,null,null,null,null,null,null,"m2"]
[]
[]
[null,"【3.建築面積】",null,null,null,null,null,null,null,null,null,null,null,null,"m2"]
[]
[]
[null,"【4.延べ面積】",null,null,null,null,null,null,null,null,null,null,null,null,"m2"]
[]
[]
[null,"【5.建築物の階数】",null,null,null,null,null,null,null,"（地上）",null,null,null,null,null,null,"階",null,null,"（地下）",null,null,null,null,null,null,"階"]
[]
[null,null,null,null,null,null,null,null,null,null,null,null,null,null,null,null,null,null,null,null,null,null,null,null,null,null,null,null,null,null,null,null,null,null,null,null,null,null,null,null,"非住宅",false]
[null,"【6.建築物の用途】",null,null,null,null,null,null,null,null,null,null,null,null,null,null,null,null,null,null,null,null,null,null,null,null,null,null,null,null,null,null,null,null,null,null,null,null,null,null,"複合",false]
[]
[]
[null,"【7.工事種別】",null,null,null,null,null,null,null,null,null,null,null,null,null,null,null,null,null,null,null,null,null,null,null,null,null,null,null,null,null,null,null,null,null,null,null,null,null,null,"新築",false]
[null,null,null,null,null,null,null,null,null,null,null,null,null,null,null,null,null,null,null,null,null,null,null,null,null,null,null,null,null,null,null,null,null,null,null,null,null,null,null,null,"増築",false]
[null,null,null,null,null,null,null,null,null,null,null,null,null,null,null,null,null,null,null,null,null,null,null,null,null,null,null,null,null,null,null,null,null,null,null,null,null,null,null,null,"改築",false]
[null,"【8.構造】",null,null,null,null,null,null,null,null,null,null,null,null,null,null,"造　一部",null,null,null,null,null,null,null,null,null,null,"造"]
[]
[]
[null,"【9.該当する地域の区分】",null,null,null,null,null,null,null,null,null,null,null,null,"地域"]
[]
[]
[null,"【10.工事着手予定年月日】",null,null,null,null,null,null,null,null,null,null,null,null,null,"年",null,null,"月",null,null,"日"]
[]
[]
[null,"【11.工事完了予定年月日】",null,null,null,null,null,null,null,null,null,null,null,null,null,"年",null,null,"月",null,null,"日"]
[]
[]
[null,"【12.備考】"]
[]
[]
[]
[]
[]
["（注意）"]
[null,"１．【６．建築物の用途】及び【７．工事種別】の欄は、該当するチェックボックスに「」マークを入れてください。"]
[null,"２．【９．該当する地域の区分】の欄において、「地域の区分」は、基準省令第１条第１項第２号イ⑴の地域の区分をいいます。"]

{"sheet":"４面","index":7,"n_rows":50,"n_cols":3,"rows_kept":50,"cut":false,"hidden":false,"merged":[[46,0,46,33],[25,1,44,36],[4,1,23,36],[0,0,0,38]]}
["(第四面)"]
[]
[]
[null,"【1.付近見取り図】"]
[]
[]
[]
[]
[]
[]
[]
[]
[]
[]
[]
[]
[]
[]
[]
[]
[]
[]
[]
[]
[null,"【2.配置図】"]
[]
[]
[]
[]
[]
[]
[]
[]
[]
[]
[]
[]
[]
[]
[]
[]
[]
[]
[]
[]
[]
["（注意）"]
[null,"１．付近見取図には、方位、道路及び目標となる地物を明示してください。"]
[null,"２．配置図には、縮尺、方位、敷地境界線、敷地内における建築物の位置、計画に係る建築物と他の建築物との別並びに敷地の接する"]
[null,null,"道路の位置及び幅員を明示してください。"]

{"sheet":"５面","index":8,"n_rows":50,"n_cols":46,"rows_kept":50,"cut":false,"hidden":false,"merged":[[0,0,0,37],[4,9,4,36],[10,21,10,25],[11,21,11,25],[12,21,12,25],[7,21,7,31],[7,11,7,16],[8,28,12,37],[8,21,8,25],[8,11,8,15],[32,2,34,36],[37,0,37,33],[9,11,9,15],[10,11,10,15],[11,11,11,15],[12,11,12,15],[22,16,22,21],[16,10,16,14],[23,16,23,21],[28,4,28,32],[16,16,16,17],[16,19,16,20],[9,21,9,25],[24,7,24,10]]}
["(第五面)"]
[]
[null,"[非住宅部分に関する事項]"]
[]
[null,"【1.非住宅部分の用途】"]
[]
[]
[null,"【2.非住宅部分の床面積】",null,null,null,null,null,null,null,null,"（","床面積",null,null,null,null,null,"）",null,null,"（","開放部分を除いた部分の床面積",null,null,null,null,null,null,null,null,null,null,"）"]
[null,null,"【イ．新築】",null,null,null,null,null,null,null,"（",null,null,null,null,null,"m2）",null,null,null,"（",null,null,null,null,null,"m2）",null,{"$f":"AR9&AR10&AR12","v":""},null,null,null,null,null,null,null,null,null,null,null,null,"新築",{"$f":"IF(L9=\"\",FALSE,TRUE)","v":false},{"$f":"IF((AQ9=TRUE)*AND('３面'!AP23=FALSE),\"3面【7.工事種別】のチェックがありません。\",\"\")","v":""}]
[null,null,"【ロ．増築】",null,null,null,null,null,null,"全体","（",null,null,null,null,null,"m2）",null,null,null,"（",null,null,null,null,null,"m2）",null,null,null,null,null,null,null,null,null,null,null,null,null,null,"増築",{"$f":"IF(L10=\"\",FALSE,TRUE)","v":false},{"$f":"IF((AQ10=TRUE)*AND('３面'!AP24=FALSE),\"3面【7.工事種別】のチェックがありません。\",\"\")","v":""}]
[null,null,null,null,null,null,null,"増築部分",null,null,"（",null,null,null,null,null,"m2）",null,null,null,"（",null,null,null,null,null,"m2）"]
[null,null,"【ハ．改築】",null,null,null,null,null,null,"全体","（",null,null,null,null,null,"m2）",null,null,null,"（",null,null,null,null,null,"m2）",null,null,null,null,null,null,null,null,null,null,null,null,null,null,"改築",{"$f":"IF(L12=\"\",FALSE,TRUE)","v":false},{"$f":"IF((AQ12=TRUE)*AND('３面'!AP25=FALSE),\"3面【7.工事種別】のチェックがありません。\",\"\")","v":""}]
[null,null,null,null,null,null,null,"改築部分",null,null,"（",null,null,null,null,null,"m2）",null,null,null,"（",null,null,null,null,null,"m2）"]
[]
[]
[null,"【3.基準省令附則第３条の適用の有無】"]
[null,null,null,"竣工年月日",null,null,null,null,null,null,null,null,null,null,null,"年",null,null,"月",null,null,"日"]
[]
[]
[null,"【4.非住宅部分のエネルギー消費性能】"]
[null,null,null,"基準省令第１条第１項第１号イの基準",null,null,null,null,null,null,null,null,null,null,null,null,null,null,"基準省令第１条第１項第１号ロの基準",null,null,null,null,null,null,null,null,null,null,null,null,null,null,null,null,null,null,null,null,null,null,null,null,false,null,false]
[]
[null,null,null,"基準一次エネルギー消費量",null,null,null,null,null,null,null,null,null,null,null,null,null,null,null,null,null,null,"GJ/年"]
[null,null,null,"設計一次エネルギー消費量",null,null,null,null,null,null,null,null,null,null,null,null,null,null,null,null,null,null,"GJ/年"]
[null,null,null,{"$f":"IF(AR21=TRUE,\"ＢＥＩ\",IF(AT21=TRUE,\"ＢＥＩm\",\"基準選択\"))","v":"基準選択"},null,null,"（",null,null,null,null,"）"]
[]
[null,null,null,"国土交通大臣が認める方法及びその結果"]
[]
[null,null,null,"（",null,null,null,null,null,null,null,null,null,null,null,null,null,null,null,null,null,null,null,null,null,null,null,null,null,null,null,null,null,"）"]
[]
[]
[null,"【5.備考】"]
[]
[]
[]
[]
[]
["（注意）"]
[null,"１．【１．非住宅部分の用途】の欄は、建築基準法施行規則（昭和25年建設省令第40号）別紙の表の用途の区分に従い記入して下さい。"]
[null,"２．【２．非住宅部分の床面積】の欄は、第三面の【７．工事種別】の欄の工事種別に応じ、非住宅部分の床面積を記載して下さい。増築"]
[null,null,"又は改築の場合は、延べ面積を併せて記載して下さい。"]
[null,"３．【２．非住宅部分の床面積】の欄において、「床面積」は、単に非住宅部分の床面積をいい、「開放部分を除いた部分の床面積」は、"]
[null,null,"建築物のエネルギー消費性能の向上に関する法律施行令第４条第１項に規定する床面積をいいます。"]
[null,"４．【３．基準省令附則第３条の適用の有無】の欄は、該当するチェックボックスに「」マークを入れ、「有」の場合は申請に係る建築物の"]
[null,null,"新築工事の竣工年月日を記載してください。"]
[null,"５．【４．非住宅部分のエネルギー消費性能】の欄は、「基準省令第１条第１項第１号イの基準」、「基準省令第１条第１号ロの基準」又は"]
[null,null,"「国土交通大臣が認める方法及びその結果」の該当するチェックボックスに、「✔」マークを入れた上で記載してください。「ＢＥＩ」につ"]
[null,null,"いては、小数点第二位未満を切り上げた数値を記載してください。"]
[null,"６．【４．非住宅部分のエネルギー消費性能】の欄において、「ＢＥＩ」は、設計一次エネルギー消費量（その他一次エネルギー消費量を"]
[null,null,"除く。）を基準一次エネルギー消費量（その他一次エネルギー消費量を除く。）で除したものをいいます。"]

{"sheet":"６面","index":9,"n_rows":65,"n_cols":42,"rows_kept":65,"cut":false,"hidden":false,"merged":[[9,11,9,15],[9,21,9,25],[10,11,10,15],[10,21,10,25],[11,11,11,15],[0,0,0,37],[7,21,7,31],[8,11,8,15],[8,21,8,25],[4,10,4,14],[3,17,5,37],[26,7,26,10],[33,4,33,32],[37,2,39,36],[42,0,42,33],[7,11,7,16],[20,10,20,14],[20,16,20,17],[20,19,20,20],[16,16,16,26],[12,11,12,15],[12,21,12,25],[24,17,24,22],[29,17,29,22],[30,17,30,22],[25,17,25,22],[11,21,11,25]]}
["(第六面)"]
[]
[null,"[住宅部分に関する事項]"]
[null,null,null,null,null,null,null,null,null,null,null,null,null,null,null,null,null,{"$f":"IF(('３面'!AP20=FALSE)*AND('６面'!AP5=TRUE),\"第三面の複合建築物のチェックがありません。複合建築物以外は記入不要です。\",\"\")","v":""}]
[null,"【1.建築物の住戸の数】",null,null,null,null,null,null,null,null,null,null,null,null,null,"戸",null,null,null,null,null,null,null,null,null,null,null,null,null,null,null,null,null,null,null,null,null,null,null,null,null,{"$f":"IF(K5=\"\",FALSE,TRUE)","v":false}]
[]
[]
[null,"【2.住宅部分の床面積】",null,null,null,null,null,null,null,null,"（","床面積",null,null,null,null,null,"）",null,null,"（","開放部分を除いた部分の床面積",null,null,null,null,null,null,null,null,null,null,"）"]
[null,null,"【イ．新築】",null,null,null,null,null,null,null,"（",null,null,null,null,null,"m2）",null,null,null,"（",null,null,null,null,null,"m2）"]
[null,null,"【ロ．増築】",null,null,null,null,null,null,"全体","（",null,null,null,null,null,"m2）",null,null,null,"（",null,null,null,null,null,"m2）"]
[null,null,null,null,null,null,null,"増築部分",null,null,"（",null,null,null,null,null,"m2）",null,null,null,"（",null,null,null,null,null,"m2）"]
[null,null,"【ハ．改築】",null,null,null,null,null,null,"全体","（",null,null,null,null,null,"m2）",null,null,null,"（",null,null,null,null,null,"m2）"]
[null,null,null,null,null,null,null,"改築部分",null,null,"（",null,null,null,null,null,"m2）",null,null,null,"（",null,null,null,null,null,"m2）"]
[]
[]
[null,"【3.基準省令附則第２条の適用の有無】"]
[null,null,null,"認定を受けた所管行政庁の名称",null,null,null,null,null,null,null,null,null,null,null,"（",null,null,null,null,null,null,null,null,null,null,null,"）"]
[]
[]
[null,"【4.基準省令附則第４条の適用の有無】"]
[null,null,null,"竣工年月日",null,null,null,null,null,null,null,null,null,null,null,"年",null,null,"月",null,null,"日"]
[]
[]
[null,"【5.住宅部分のエネルギー消費性能】"]
[null,null,null,"基準一次エネルギー消費量",null,null,null,null,null,null,null,null,null,null,null,null,null,null,null,null,null,null,null,"GJ/年"]
[null,null,null,"設計一次エネルギー消費量",null,null,null,null,null,null,null,null,null,null,null,null,null,null,null,null,null,null,null,"GJ/年"]
[null,null,null,"ＢＥＩ",null,null,"（",null,null,null,null,"）"]
[null,null,null,"一次エネルギー消費量に関する仕様基準"]
[]
[null,null,null,"共用部分の基準一次エネルギー消費量",null,null,null,null,null,null,null,null,null,null,null,null,"（",null,null,null,null,null,null,"GJ/年）"]
[null,null,null,"共用部分の設計一次エネルギー消費量",null,null,null,null,null,null,null,null,null,null,null,null,"（",null,null,null,null,null,null,"GJ/年）"]
[]
[null,null,null,"国土交通大臣が認める方法及びその結果"]
[null,null,null,"（",null,null,null,null,null,null,null,null,null,null,null,null,null,null,null,null,null,null,null,null,null,null,null,null,null,null,null,null,null,"）"]
[]
[]
[null,"【6.備考】"]
[]
[]
[]
[]
[]
["（注意）"]
[null,"１．第六面は、第三面の【６．建築物の用途】の欄で「複合建築物」を選択した場合のみ記載して下さい。"]
[null,"２．【２．住宅部分の床面積】の欄は、第三面の【７．工事種別】の欄の工事種別に応じ、住宅部分の床面積を記載して下さい。増築又は"]
[null,null,"改築の場合は、延べ面積を併せて記載して下さい。"]
[null,"３．【２．住宅部分の床面積】の欄において、「床面積」は、単に住宅部分の床面積をいい、「開放部分を除いた床面積」は、建築物のエネ"]
[null,null,"ルギー消費性能の向上に関する法律施行令第４条第１項に規定する床面積をいいます。"]
[null,"４．【３．基準省令附則第２条の適用の有無】の欄は、該当するチェックボックスに「」マークを入れ、「有」の場合は申請に係る建築物が"]
[null,null,"「地域の気候及び風土に応じた住宅であることにより基準省令第１条第１項第２号イに適合させることが困難」であると認定を受けた"]
[null,null,"所管行政庁の名称を記載してください。"]
[null,"５．【４．基準省令附則第４条の適用の有無】の欄は、該当するチェックボックスに「✔」マークを入れ、「有」の場合は申請に係る建築物の"]
[null,null,"新築工事の竣工年月日を記載してください。"]
[null,"６．【５．住宅部分のエネルギー消費性能】の欄は、以下の内容に従って記載してください。"]
[null,null,"(1)「基準一次エネルギー消費量」、「設計一次エネルギー消費量」及び「ＢＥＩ」、「一次エネルギー消費量に関する仕様基準」又は"]
[null,null,"「国土交通大臣が認める方法及びその結果」の該当するチェックボックスに「✔」マークを入れた上で記載してください。「基準一次エネ"]
[null,null,"ルギー消費量」、「設計一次エネルギー消費量」及び「ＢＥＩ」については、住宅部分全体での数値を記載してください。「ＢＥＩ」について"]
[null,null,"は、小数点第二位未満を切り上げた数値を記載してください。「一次エネルギー消費量に関する仕様基準」を用いる場合は、別紙に"]
[null,null,"詳細を記載し、「共用部分の基準一次エネルギー消費量」及び「共用部分の設計一次エネルギー消費量」を記載してください。"]
[null,null,"(2)この欄において、次に掲げる用語の意義は、それぞれ次のとおりとします。"]
[null,null,null,"ⅰ）ＢＥＩ　設計一次エネルギー消費量（その他一次エネルギー消費量を除く。）を基準一次エネルギー消費量（その他一次エネ"]
[null,null,null,"ルギー消費量を除く。）で除したものをいいます。"]
[null,null,null,"ⅱ）一次エネルギー消費量に関する仕様基準　基準省令第１条第１項第２号ロ(2)に規定する国土交通大臣が定める基準をいいます。"]
[null,"７．第六面は、確認申請等他の制度の申請書の写しに必要事項を補って追加して記載した書面その他の記載すべき事項のすべてが明示"]
[null,null,"された別の書面をもって代えることができます。"]

{"sheet":"７面","index":10,"n_rows":66,"n_cols":33,"rows_kept":66,"cut":false,"hidden":false,"merged":[[11,10,11,14],[0,0,0,37],[4,10,4,14],[8,21,8,31],[9,11,9,15],[9,21,9,25],[8,10,8,14],[43,0,43,33],[25,4,25,31],[35,5,35,9],[40,4,40,31],[2,1,2,7],[13,11,13,15],[13,21,13,25],[18,10,18,14],[18,22,18,26],[20,22,20,26],[20,13,20,17],[10,11,10,15],[10,21,10,25],[11,21,11,25],[12,11,12,15],[12,21,12,25]]}
["(第七面)"]
[]
[null,"[住戸に関する事項]"]
[]
[null,"【1.住戸の番号】"]
[]
[]
[]
[null,"【2.住宅の存する階】",null,null,null,null,null,null,null,null,null,null,null,null,null,"階"]
[]
[]
[null,"【3.専用部分の床面積】",null,null,null,null,null,null,null,null,null,null,null,null,null,"㎡"]
[]
[]
[null,"【4.住戸のエネルギー消費性能】"]
[]
[null,"1. 外壁、窓等を通しての熱の損失の防止に関する事項"]
[]
[null,null,null,null,null,null,null,null,null,null,null,null,null,null,null,"W/(㎡・K）",null,null,null,"（基準値",null,null,null,null,null,null,null,"W/(㎡・K））"]
[]
[null,null,null,"冷房機の平均日射熱取得率",null,null,null,null,null,null,null,null,null,null,null,null,null,null,null,"（基準値",null,null,null,null,null,null,null,"）"]
[]
[]
[]
[]
[null,null,null,"（",null,null,null,null,null,null,null,null,null,null,null,null,null,null,null,null,null,null,null,null,null,null,null,null,null,null,null,null,"）"]
[]
[]
[]
[null,"2. 一次エネルギー消費量に関する事項"]
[]
[]
[]
[]
[]
[null,null,null,"BEI（",null,null,null,null,null,null,"）"]
[]
[]
[]
[]
[null,null,null,"（",null,null,null,null,null,null,null,null,null,null,null,null,null,null,null,null,null,null,null,null,null,null,null,null,null,null,null,null,"）"]
[]
[]
["（注意）"]
[null,"１．第七面は、第三面の【６．建築物の用途】の欄で「複合建築物」を選択した場合に、住戸ごとに作成して下さい。"]
[null,"２．住戸の階数が二以上である場合には、【3.専用部分の床面積】に各階ごとの床面積を併せて記載して下さい"]
[null,"３．【4．住戸のエネルギー消費性能】の欄は、以下の内容に従って記載して下さい。"]
[null,null,"(1)「１．外壁、窓等を通しての熱の損失の防止に関する事項」については、「外皮平均熱貫流率」及び「冷房期の平均日射熱取得率」、"]
[null,null,null,"「外壁、窓等を通しての熱の損失の防止に関する仕様基準」、「国土交通大臣が認める方法及びその結果」又は「基準対象外」の"]
[null,null,null,"該当するチェックボックスに、「」マークを入れた上で記載してください。"]
[null,null,null,"「外皮平均熱貫流率」及び「冷房期の平均日射熱取得率」については、それぞれの基準値（基準省令第１条第１項第２号イ（１）の表"]
[null,null,null,"に掲げる数値をいう。）と併せて記載してください。「外壁、窓等を通しての熱の損失の防止に関する仕様基準」を用いる場合は、"]
[null,null,null,"別紙に詳細を記載してください。"]
[null,null,"(2)「２．一次エネルギー消費量に関する事項」については、「基準一次エネルギー消費量」、「設計一次エネルギー消費量」及び「ＢＥＩ」、"]
[null,null,null,"「一次エネルギー消費量に関する仕様基準」又は「国土交通大臣が認める方法及びその結果」の該当するチェックボックスに、"]
[null,null,null,"「」マークを入れた上で記載してください。「ＢＥＩ」については、小数点第二位未満を切り上げた数値を記載してください。"]
[null,null,null,"「一次エネルギー消費量に関する仕様基準」を用いる場合は、別紙に詳細を記載してください。"]
[null,null,"(3)この欄において、次に掲げる用語の意義は、それぞれ次のとおりとします。"]
[null,null,null,"ⅰ）ＢＥＩ　設計一次エネルギー消費量（その他一次エネルギー消費量を除く。）を基準一次エネルギー消費量（その他一次エネルギー"]
[null,null,null,"　　消費量を除く。）で除したものをいいます。"]
[null,null,null,"ⅱ）一次エネルギー消費量に関する仕様基準　基準省令第１条第１項第２号ロ(2)に規定する国土交通大臣が定める基準をいいます。"]
[null,null,null,"ⅲ）外壁、窓等を通しての熱の損失の防止に関する仕様基準　基準省令第１条第１項第２号イ(2)に規定する国土交通大臣が定める"]
[null,null,null,"　　基準をいいます。"]
[null,null,null,"ⅳ）基準対象外　基準省令附則第４条第１項の規定の適用を受ける場合をいいます。"]
[null,"４. 第七面は、確認申請等他の制度の申請書の写しに必要事項を補うこと、複数の住戸に関する情報を集約して記載すること等により記載"]
[null,"　  すべき事項の全てが明示された別の書面をもって代えることができます。"]

{"sheet":"別紙","index":11,"n_rows":105,"n_cols":37,"rows_kept":105,"cut":false,"hidden":false,"merged":[[64,11,64,35],[66,11,66,35],[68,11,68,35],[69,11,69,35],[72,2,74,36],[63,11,63,35],[39,25,39,35],[40,25,40,27],[41,17,41,19],[41,30,41,32],[43,13,43,15],[43,34,43,35],[44,26,44,35],[45,26,45,35],[46,17,46,19],[54,21,54,23],[57,11,57,35],[58,11,58,35],[60,11,60,35],[61,11,61,35],[30,30,30,32],[34,25,34,35],[35,25,35,27],[36,17,36,19],[36,30,36,32],[77,0,77,33],[7,25,7,35],[8,25,8,27],[9,17,9,19],[9,30,9,32],[13,25,13,35],[14,25,14,27],[15,17,15,19],[15,30,15,32],[21,25,21,35],[47,28,47,30],[48,28,48,35],[53,21,53,23],[49,30,49,35],[29,25,29,27],[30,17,30,19],[0,0,0,37],[22,25,22,27],[23,17,23,19],[23,30,23,32],[28,25,28,35]]}
["（別紙）外壁、窓等を通しての熱の損失の防止に関する仕様基準又は一次エネルギー消費量に関する仕様基準を用いる場合"]
[]
[null,"１．住戸に係る事項"]
[null,"（1）外壁、窓等を通しての熱の損失の防止のための措置"]
[null,null,"1）屋根又は天井"]
[null,null,null,"【断熱材の施工法】",null,null,null,null,null,null,null,null,null,"内断熱工法",null,null,null,null,null,null,null,"外断熱工法"]
[null,null,null,null,null,null,null,null,null,null,null,null,null,"充填断熱工法",null,null,null,null,null,null,null,"外張断熱工法",null,null,null,null,null,null,null,"内張断熱工法"]
[null,null,null,"【断熱性能】",null,null,null,null,null,null,null,null,null,"断熱材の種別及び厚さ",null,null,null,null,null,null,null,null,"（種別",null,null,null,null,null,null,null,null,null,null,null,null,null,"）"]
[null,null,null,null,null,null,null,null,null,null,null,null,null,null,null,null,null,null,null,null,null,null,"（厚さ",null,null,null,null,null,"mm",null,"）"]
[null,null,null,null,null,null,null,null,null,null,null,null,null,"熱貫流率（",null,null,null,null,null,null,"W/(m2・K)）",null,null,null,null,null,"熱抵抗値（",null,null,null,null,null,null,"(m2・K)/W）"]
[null,null,"2）壁"]
[null,null,null,"【断熱材の施工法】",null,null,null,null,null,null,null,null,null,"内断熱工法",null,null,null,null,null,null,null,"外断熱工法"]
[null,null,null,null,null,null,null,null,null,null,null,null,null,"充填断熱工法",null,null,null,null,null,null,null,"外張断熱工法",null,null,null,null,null,null,null,"内張断熱工法"]
[null,null,null,"【断熱性能】",null,null,null,null,null,null,null,null,null,"断熱材の種別及び厚さ",null,null,null,null,null,null,null,null,"（種別",null,null,null,null,null,null,null,null,null,null,null,null,null,"）"]
[null,null,null,null,null,null,null,null,null,null,null,null,null,null,null,null,null,null,null,null,null,null,"（厚さ",null,null,null,null,null,"mm",null,"）"]
[null,null,null,null,null,null,null,null,null,null,null,null,null,"熱貫流率（",null,null,null,null,null,null,"W/(m2・K)）",null,null,null,null,null,"熱抵抗値（",null,null,null,null,null,null,"(m2・K)/W）"]
[null,null,"3）床"]
[null,null,null,"（イ）外気に接する部分"]
[null,null,null,null,"【該当箇所の有無】",null,null,null,null,null,null,null,null,"有",null,null,null,null,null,null,null,"無"]
[null,null,null,null,"【断熱材の施工法】",null,null,null,null,null,null,null,null,"内断熱工法",null,null,null,null,null,null,null,"外断熱工法"]
[null,null,null,null,null,null,null,null,null,null,null,null,null,"充填断熱工法",null,null,null,null,null,null,null,"外張断熱工法",null,null,null,null,null,null,null,"内張断熱工法"]
[null,null,null,null,"【断熱性能】",null,null,null,null,null,null,null,null,"断熱材の種別及び厚さ",null,null,null,null,null,null,null,null,"（種別",null,null,null,null,null,null,null,null,null,null,null,null,null,"）"]
[null,null,null,null,null,null,null,null,null,null,null,null,null,null,null,null,null,null,null,null,null,null,"（厚さ",null,null,null,null,null,"mm",null,"）"]
[null,null,null,null,null,null,null,null,null,null,null,null,null,"熱貫流率（",null,null,null,null,null,null,"W/(m2・K)）",null,null,null,null,null,"熱抵抗値（",null,null,null,null,null,null,"(m2・K)/W）"]
[null,null,null,"（ロ）その他の部分"]
[null,null,null,null,"【該当箇所の有無】",null,null,null,null,null,null,null,null,"有",null,null,null,null,null,null,null,"無"]
[null,null,null,null,"【断熱材の施工法】",null,null,null,null,null,null,null,null,"内断熱工法",null,null,null,null,null,null,null,"外断熱工法"]
[null,null,null,null,null,null,null,null,null,null,null,null,null,"充填断熱工法",null,null,null,null,null,null,null,"外張断熱工法",null,null,null,null,null,null,null,"内張断熱工法"]
[null,null,null,null,"【断熱性能】",null,null,null,null,null,null,null,null,"断熱材の種別及び厚さ",null,null,null,null,null,null,null,null,"（種別",null,null,null,null,null,null,null,null,null,null,null,null,null,"）"]
[null,null,null,null,null,null,null,null,null,null,null,null,null,null,null,null,null,null,null,null,null,null,"（厚さ",null,null,null,null,null,"mm",null,"）"]
[null,null,null,null,null,null,null,null,null,null,null,null,null,"熱貫流率（",null,null,null,null,null,null,"W/(m2・K)）",null,null,null,null,null,"熱抵抗値（",null,null,null,null,null,null,"(m2・K)/W）"]
[null,null,"4）土間床等の外周部分の基礎"]
[null,null,null,"（イ）外気に接する部分"]
[null,null,null,null,"【該当箇所の有無】",null,null,null,null,null,null,null,null,"有",null,null,null,null,null,null,null,"無"]
[null,null,null,null,"【断熱性能】",null,null,null,null,null,null,null,null,"断熱材の種別及び厚さ",null,null,null,null,null,null,null,null,"（種別",null,null,null,null,null,null,null,null,null,null,null,null,null,"）"]
[null,null,null,null,null,null,null,null,null,null,null,null,null,null,null,null,null,null,null,null,null,null,"（厚さ",null,null,null,null,null,"mm",null,"）"]
[null,null,null,null,null,null,null,null,null,null,null,null,null,"熱貫流率（",null,null,null,null,null,null,"W/(m2・K)）",null,null,null,null,null,"熱抵抗値（",null,null,null,null,null,null,"(m2・K)/W）"]
[null,null,null,"（ロ）その他の部分"]
[null,null,null,null,"【該当箇所の有無】",null,null,null,null,null,null,null,null,"有",null,null,null,null,null,null,null,"無"]
[null,null,null,null,"【断熱性能】",null,null,null,null,null,null,null,null,"断熱材の種別及び厚さ",null,null,null,null,null,null,null,null,"（種別",null,null,null,null,null,null,null,null,null,null,null,null,null,"）"]
[null,null,null,null,null,null,null,null,null,null,null,null,null,null,null,null,null,null,null,null,null,null,"（厚さ",null,null,null,null,null,"mm",null,"）"]
[null,null,null,null,null,null,null,null,null,null,null,null,null,"熱貫流率（",null,null,null,null,null,null,"W/(m2・K)）",null,null,null,null,null,"熱抵抗値（",null,null,null,null,null,null,"(m2・K)/W）"]
[null,null,"5）開口部"]
[null,null,null,"【開口部比率】",null,null,null,null,null,null,null,null,"（",null,null,null,"）",null,null,null,null,null,null,"【開口部比率区分】",null,null,null,null,null,null,null,null,null,"（","　",null,"）"]
[null,null,null,"【断熱性能】",null,null,null,null,null,null,null,null,null,"建具等の種類",null,null,null,null,null,"（建具の材質・構造",null,null,null,null,null,null,null,null,null,null,null,null,null,null,null,null,"）"]
[null,null,null,null,null,null,null,null,null,null,null,null,null,null,null,null,null,null,null,"（ガラスの種別",null,null,null,null,null,null,null,null,null,null,null,null,null,null,null,null,"）"]
[null,null,null,null,null,null,null,null,null,null,null,null,null,"熱貫流率（",null,null,null,null,null,null,"W/(m2・K)）"]
[null,null,null,"【日射遮蔽性能】",null,null,null,null,null,null,null,null,null,"ガラスの日射熱取得率",null,null,null,null,null,null,null,null,"（日射熱取得率",null,null,null,null,null,null,null,null,"）"]
[null,null,null,null,null,null,null,null,null,null,null,null,null,"付属部材",null,null,null,null,null,"（南±25度に設置するもの",null,null,null,null,null,null,null,null,null,null,null,null,null,null,null,null,"）"]
[null,null,null,null,null,null,null,null,null,null,null,null,null,null,null,null,null,null,null,"（上記以外の方位に設置するもの",null,null,null,null,null,null,null,null,null,null,null,null,null,null,null,null,"）"]
[null,null,null,null,null,null,null,null,null,null,null,null,null,"ひさし、軒等"]
[null,null,"6）構造熱橋部"]
[null,null,null,"【該当箇所の有無】",null,null,null,null,null,null,null,null,null,"有",null,null,null,null,null,null,null,"無"]
[null,null,null,"【断熱性能】",null,null,null,null,null,null,null,null,"断熱補強の範囲",null,null,null,null,null,null,null,"（",null,null,null,"mm",null,"）"]
[null,null,null,null,null,null,null,null,null,null,null,null,"断熱補強の熱抵抗値",null,null,null,null,null,null,null,"（",null,null,null,"(m2・K)/W）"]
[]
[null,"（2）空気調和設備等に係るエネルギーの効率的利用のための措置"]
[null,null,null,"【暖房】",null,null,"暖房設備",null,null,null,"（",null,null,null,null,null,null,null,null,null,null,null,null,null,null,null,null,null,null,null,null,null,null,null,null,null,"）"]
[null,null,null,null,null,null,"効率",null,null,null,"（",null,null,null,null,null,null,null,null,null,null,null,null,null,null,null,null,null,null,null,null,null,null,null,null,null,"）"]
[]
[null,null,null,"【冷房】",null,null,"冷房設備",null,null,null,"（",null,null,null,null,null,null,null,null,null,null,null,null,null,null,null,null,null,null,null,null,null,null,null,null,null,"）"]
[null,null,null,null,null,null,"効率",null,null,null,"（",null,null,null,null,null,null,null,null,null,null,null,null,null,null,null,null,null,null,null,null,null,null,null,null,null,"）"]
[]
[null,null,null,"【換気】",null,null,"換気設備",null,null,null,"（",null,null,null,null,null,null,null,null,null,null,null,null,null,null,null,null,null,null,null,null,null,null,null,null,null,"）"]
[null,null,null,null,null,null,"効率",null,null,null,"（",null,null,null,null,null,null,null,null,null,null,null,null,null,null,null,null,null,null,null,null,null,null,null,null,null,"）"]
[]
[null,null,null,"【照明】",null,null,"照明設備",null,null,null,"（",null,null,null,null,null,null,null,null,null,null,null,null,null,null,null,null,null,null,null,null,null,null,null,null,null,"）"]
[]
[null,null,null,"【給湯】",null,null,"給湯設備",null,null,null,"（",null,null,null,null,null,null,null,null,null,null,null,null,null,null,null,null,null,null,null,null,null,null,null,null,null,"）"]
[null,null,null,null,null,null,"効率",null,null,null,"（",null,null,null,null,null,null,null,null,null,null,null,null,null,null,null,null,null,null,null,null,null,null,null,null,null,"）"]
[]
[null,"２．備考"]
[]
[]
[]
[]
[]
["（注意）"]
[null,"１．１欄は、共同住宅等又は複合建築物の住戸に係る措置について、住戸ごとに記入してください。なお、計画に係る"]
[null,null,"住戸の数が二以上である場合は、当該各住戸に関して記載すべき事項の全てが明示された別の書面をもって代えることが"]
[null,null,"できます。"]
[null,"２．１欄の（１）の１）から３）までにおける「断熱材の施工法」は、部位ごとに断熱材の施工法を複数用いている場合"]
[null,null,"は、主たる施工法のチェックボックスに「✔」マークを入れてください。なお、主たる施工法以外の施工法について、主たる施工法"]
[null,null,"に準じて、別紙のうち当該部位に係る事項を記入したものを添えることを妨げるものではありません。"]
[null,"３．１欄の（１）の１）から４）までにおける「断熱性能」は、「断熱材の種別及び厚さ」、「熱貫流率」又は「熱抵"]
[null,null,"抗値」のうち、該当するチェックボックスに「✔」マークを入れ、併せて必要な事項を記入してください。「断熱材の種別及び厚さ」"]
[null,null,"については、当該部位に使用している断熱材の材料名及び厚さを記入してください。"]
[null,"４．１欄の（１）の３）及び４）における（イ）及び（ロ）の「該当箇所の有無」は、該当箇所がある場合には「有」"]
[null,null,"のチェックボックスに、「✔」マークを入れてください。"]
[null,"５．１欄の（１）の５）の「開口部比率」とは、外皮面積の合計に占める開口部の面積の割合をいいます。"]
[null,"６．１欄の（１）の５）は、開口部のうち主たるものを対象として、必要な事項を記入してください。"]
[null,"７．１欄の（１）の５）の「断熱性能」は、「建具等の種類」又は「熱貫流率」の該当するチェックボックスに「✔」"]
[null,null,"マークを入れ、必要な事項を記入してください。"]
[null,"８．１欄の（１）の５）の「日射遮蔽性能」は、「ガラスの日射熱取得率」、「付属部材」又は「ひさし、軒等」につ"]
[null,null,"いて該当するチェックボックスに「✔」マークを入れ、必要な事項を記入してください。"]
[null,"９．１欄の（１）の６）の「該当箇所の有無」は、該当箇所がある場合には、「有」のチェックボックスに「✔」マーク"]
[null,null,"を入れ、「断熱性能」の欄に、「断熱補強の範囲」及び「断熱補強の熱抵抗値」を記入してください。"]
[null,"10．１欄の（２）の「暖房」、「冷房」、「換気」、「照明」、「給湯」については、住戸に設置する設備機器（「照明」"]
[null,null,"にあっては、非居室に白熱灯又はこれと同等以下の性能の照明設備を採用しない旨）とその効率（「照明」を除く。）を記載してくだ"]
[null,null,"さい。設備機器が複数ある場合は最も効率の低い設備機器とその効率を記載してください。「効率」の欄には、「暖房」では熱源機"]
[null,null,"の熱効率又は暖房能力を消費電力で除した値を、「冷房」では冷房能力を消費電力で除した値を、「換気」では換気回数及び比"]
[null,null,"消費電力（全般換気設備の消費電力を設計風量で除した値をいう。以下同じ。）（熱交換換気設備を採用する場合にあっては、比"]
[null,null,"消費電力を有効換気量率で除した値）を、「給湯」では熱源機の熱効率をそれぞれ記載してください。ただし、浴室等、台所及び"]
[null,null,"洗面所がない場合は、「給湯」の欄は記載する必要はありません。"]
[null,"11．１欄に書き表せない事項で特に記入すべき事項は、２欄に記入し、又は別紙に記入して添えてください。"]

{"sheet":"設内（モデル）","index":12,"n_rows":63,"n_cols":39,"rows_kept":63,"cut":false,"hidden":false,"merged":[[53,17,53,23],[16,3,16,6],[18,3,18,6],[47,10,47,12],[46,9,46,13],[47,16,47,31],[46,15,46,32],[48,10,48,12],[39,18,39,20],[41,0,41,36],[21,31,21,33],[31,31,31,33],[32,31,32,33],[37,15,37,27],[37,31,37,33],[19,3,19,6],[9,31,9,33],[15,3,15,6],[15,15,15,17],[15,24,15,26],[11,3,11,6],[12,3,12,6],[14,3,14,6],[14,19,14,21],[13,3,13,6],[13,16,13,27],[43,0,44,2],[43,3,44,6],[10,3,10,6],[0,0,0,36],[2,0,2,6],[2,7,2,36],[3,0,3,6],[3,7,3,36],[5,0,6,2],[5,3,6,6],[5,7,5,33],[5,34,6,36],[6,7,6,10],[6,11,6,29],[6,30,6,33],[9,3,9,6],[43,34,44,36],[43,7,44,33],[52,10,52,12],[52,16,52,31],[16,23,16,26],[17,23,17,26],[18,23,18,26],[19,23,19,26],[48,16,48,31],[49,10,49,12],[49,16,49,31],[50,10,50,12],[50,16,50,31],[51,10,51,12],[51,16,51,31]]}
["（第一面）",null,null,null,null,null,null,null,null,null,null,null,null,null,null,null,null,null,null,null,null,null,null,null,null,null,null,null,null,null,null,null,null,null,null,null,null,null,{"$f":"IF('５面'!AT21=TRUE,1,\"\")","v":""}]
["設計内容説明書（モデル建物法）",null,null,null,null,null,null,null,null,null,null,null,null,null,null,null,null,null,null,null,null,null,null,null,null,null,null,null,null,null,null,null,null,null,null,null,{"$f":"IF(AM1=1,\"\",\"標準入力法の場合、提出不要です\")","v":"標準入力法の場合、提出不要です"}]
["建築物の名称",null,null,null,null,null,null,{"$f":"IF(AM1=1,IF(質疑等連絡票!H5=\"\",\"質疑連絡票に記載がありません\",質疑等連絡票!H5),\"\")","v":""}]
["設計者等氏名",null,null,null,null,null,null,{"$f":"IF(AM1=1,計画書!U17,\"\")","v":""}]
["【基本事項】"]
["確認\n事項",null,null,"確認\n項目",null,null,null,"設計内容説明欄",null,null,null,null,null,null,null,null,null,null,null,null,null,null,null,null,null,null,null,null,null,null,null,null,null,null,"設　計\n内　容\n確認欄"]
[null,null,null,null,null,null,null,"項目",null,null,null,"設計内容",null,null,null,null,null,null,null,null,null,null,null,null,null,null,null,null,null,null,"記載図書"]
["建物の",null,null,"建築物に",null,null,null,"用途",null,null,null,null,"非住宅建築物",null,null,null,null,null,null,null,null,null,"非住宅複合建築物",null,null,null,null,null,null,null,null,"概要書",null,null,"□","適"]
["概要",null,null,"関する事項",null,null,null,null,null,null,null,null,"非住宅・住宅複合建築物",null,null,null,null,null,null,null,null,null,null,null,null,null,null,null,null,null,null,"面積表",null,null,"□","否"]
[null,null,null,null,null,null,null,null,null,null,null,"・非住宅部分の具体的な用途"]
[null,null,null,null,null,null,null,null,null,null,null,null,null,"事務所等",null,null,null,null,null,"ホテル等",null,null,null,null,null,"病院等"]
[null,null,null,null,null,null,null,null,null,null,null,null,null,"百貨店等",null,null,null,null,null,"学校等",null,null,null,null,null,"飲食店等"]
[null,null,null,null,null,null,null,null,null,null,null,null,null,"集会所等",null,null,null,null,null,"工場等"]
[null,null,null,null,null,null,null,null,null,null,null,null,null,"その他（",null,null,null,null,null,null,null,null,null,null,null,null,null,null,"）"]
[null,null,null,null,null,null,null,"地域区分",null,null,null,"・建設地の地域区分",null,null,null,null,null,null,"（",{"$f":"IF(AM1=1,IFERROR('３面'!L29,\"\"),\"\")","v":""},null,null,"）","地域"]
[null,null,null,null,null,null,null,"階数",null,null,null,"・地上",null,null,"（",{"$f":"IF(AM1=1,'３面'!N17,\"\")","v":""},null,null,"）","階",null,"地下",null,"（",{"$f":"IF(AM1=1,'３面'!X17,\"\")","v":""},null,null,"）","階"]
[null,null,null,null,null,null,null,"面積",null,null,null,"・延べ面積",null,null,null,null,null,null,null,null,null,null,"（",{"$f":"IF(AM1=1,IFERROR('３面'!J14,\"\"),\"\")","v":""},null,null,null,"）","m2"]
[null,null,null,null,null,null,null,null,null,null,null,"・住宅部分の面積",null,null,null,null,null,null,null,null,null,null,"（",null,null,null,null,"）","m2"]
[null,null,null,null,null,null,null,null,null,null,null,"・高い開放性を有する部分の面積",null,null,null,null,null,null,null,null,null,null,"（",null,null,null,null,"）","m2"]
[null,null,null,null,null,null,null,null,null,null,null,"・計算対象部分の床面積",null,null,null,null,null,null,null,null,null,null,"（",null,null,null,null,"）","m2"]
[null,null,null,"計算方法に",null,null,null,"選択した",null,null,null,"・計算に用いたモデル建物の種別",null,null,null,null,null,null,null,null,null,null,null,null,null,null,null,null,null,null,"■","出力ｼｰﾄ",null,null,"□","適"]
[null,null,null,"関する事項",null,null,null,"モデル建物",null,null,null,null,"■","第二面による",null,null,null,null,null,null,null,null,null,null,null,null,null,null,null,null,null,null,null,null,"□","否"]
["外皮の",null,null,"外壁の性能",null,null,null,"計算手法等",null,null,null,null,"断熱種別等による入力",null,null,null,null,null,null,null,null,null,null,null,null,null,null,null,null,null,null,"仕様書",null,null,"□","適"]
["概要",null,null,null,null,null,null,null,null,null,null,null,"断熱材の性能及び厚さによる入力",null,null,null,null,null,null,null,null,null,null,null,null,null,null,null,null,null,null,"集計表",null,null,"□","否"]
[null,null,null,null,null,null,null,null,null,null,null,null,"層構成に応じた計算"]
[null,null,null,"窓の性能",null,null,null,"計算手法等",null,null,null,null,"建具・ガラス種別による入力",null,null,null,null,null,null,null,null,null,null,null,null,null,null,null,null,null,null,"仕様書",null,null,"□","適"]
[null,null,null,null,null,null,null,null,null,null,null,null,"建具種別とガラス性能値による入力",null,null,null,null,null,null,null,null,null,null,null,null,null,null,null,null,null,null,"集計表",null,null,"□","否"]
[null,null,null,null,null,null,null,null,null,null,null,null,"窓の性能値による入力"]
["設備の",null,null,"設備の仕様",null,null,null,"対象の有無",null,null,null,"・計算対象空調設備の有無",null,null,null,null,null,null,null,null,null,null,"有り",null,null,null,null,"無し",null,null,"■","出力ｼｰﾄ",null,null,"□","適"]
["概要",null,null,null,null,null,null,null,null,null,null,"・計算対象換気設備の有無",null,null,null,null,null,null,null,null,null,null,"有り",null,null,null,null,"無し",null,null,null,"集計表",null,null,"□","否"]
[null,null,null,null,null,null,null,null,null,null,null,"・計算対象照明設備の有無",null,null,null,null,null,null,null,null,null,null,"有り",null,null,null,null,"無し",null,null,null,"機器表"]
[null,null,null,null,null,null,null,null,null,null,null,"・計算対象給湯設備の有無",null,null,null,null,null,null,null,null,null,null,"有り",null,null,null,null,"無し"]
[null,null,null,null,null,null,null,null,null,null,null,"・計算対象昇降機の有無",null,null,null,null,null,null,null,null,null,null,"有り",null,null,null,null,"無し"]
[null,null,null,null,null,null,null,null,null,null,null,"・太陽光発電の有無",null,null,null,null,null,null,null,null,null,null,"有り",null,null,null,null,"無し"]
[null,null,null,null,null,null,null,null,null,null,null,null,null,"太陽光発電有りの場合、全量自家消費とする"]
[null,null,null,null,null,null,null,null,null,null,null,null,null,"太陽光発電有りの場合、全量売電を行わない"]
["その他",null,null,null,null,null,null,"任意評定等",null,null,null,"・任意評定等の活用の有無",null,null,null,null,null,null,null,null,null,null,"有り",null,null,null,null,"無し",null,null,"■","評定書",null,null,"□","適"]
[null,null,null,null,null,null,null,"の活用",null,null,null,null,"内容（",null,null,null,null,null,null,null,null,null,null,null,null,null,null,null,"）",null,null,null,null,null,"□","否"]
["計算の結果",null,null,null,null,null,null,"一次エネ",null,null,null,"・一次エネ基準への適否",null,null,null,null,null,null,null,null,null,null,null,null,null,null,null,null,null,null,"■","出力ｼｰﾄ",null,null,"□","適"]
[null,null,null,null,null,null,null,null,null,null,null,null,null,"適合（ＢＥＩ：",null,null,null,null,null,null,null,"）",null,null,null,"不適合",null,null,null,null,null,null,null,null,"□","否"]
[]
["（第二面）"]
["【適用したモデル建物】"]
["確認\n事項",null,null,"確認\n項目",null,null,null,"設計内容説明欄",null,null,null,null,null,null,null,null,null,null,null,null,null,null,null,null,null,null,null,null,null,null,null,null,null,null,"設　計\n内　容\n確認欄"]
[]
["用途等に",null,null,"用途区分",null,null,null,"・建築基準法施行規則別表に定める用途区分コード",null,null,null,null,null,null,null,null,null,null,null,null,null,null,null,null,null,null,null,null,null,null,null,null,null,null,"□","適"]
["関する",null,null,"コード",null,null,null,null,null,"用途区分コード",null,null,null,null,null,"規則別紙で記載のある用途の名称",null,null,null,null,null,null,null,null,null,null,null,null,null,null,null,null,null,null,"□","否"]
["事項",null,null,null,null,null,null,null,"・","（",null,null,null,"）",null,"（",null,null,null,null,null,null,null,null,null,null,null,null,null,null,null,null,"）"]
[null,null,null,null,null,null,null,null,"・","（",null,null,null,"）",null,"（",null,null,null,null,null,null,null,null,null,null,null,null,null,null,null,null,"）"]
[null,null,null,null,null,null,null,null,"・","（",null,null,null,"）",null,"（",null,null,null,null,null,null,null,null,null,null,null,null,null,null,null,null,"）"]
[null,null,null,null,null,null,null,null,"・","（",null,null,null,"）",null,"（",null,null,null,null,null,null,null,null,null,null,null,null,null,null,null,null,"）"]
[null,null,null,null,null,null,null,null,"・","（",null,null,null,"）",null,"（",null,null,null,null,null,null,null,null,null,null,null,null,null,null,null,null,"）"]
[null,null,null,null,null,null,null,null,"・","（",null,null,null,"）",null,"（",null,null,null,null,null,null,null,null,null,null,null,null,null,null,null,null,"）"]
[null,null,null,"用いた",null,null,null,null,"事務所モデル",null,null,null,null,null,null,null,null,"ビジネスホテルモデル",null,null,null,null,null,null,null,"シティホテルモデル",null,null,null,null,null,null,null,null,"□","適"]
[null,null,null,"モデル建物",null,null,null,null,"総合病院モデル",null,null,null,null,null,null,null,null,"福祉施設モデル",null,null,null,null,null,null,null,"クリニックモデル",null,null,null,null,null,null,null,null,"□","否"]
[null,null,null,null,null,null,null,null,"学校モデル",null,null,null,null,null,null,null,null,"幼稚園モデル",null,null,null,null,null,null,null,"大学モデル"]
[null,null,null,null,null,null,null,null,"講堂モデル",null,null,null,null,null,null,null,null,"大規模物販モデル",null,null,null,null,null,null,null,"小規模物販モデル"]
[null,null,null,null,null,null,null,null,"飲食店モデル",null,null,null,null,null,null,null,null,"集会所モデル",null,null,null,null,null,null,null,"工場モデル"]
[null,null,null,null,null,null,null,"・集会所等にあっては、以下の室用途を併せて選択"]
[null,null,null,null,null,null,null,null,null,"アスレチック場",null,null,null,null,null,null,null,null,"体育館",null,null,null,null,null,null,null,"浴場施設"]
[null,null,null,null,null,null,null,null,null,"映画館",null,null,null,null,null,null,null,null,"図書館",null,null,null,null,null,null,null,"博物館"]
[null,null,null,null,null,null,null,null,null,"劇場",null,null,null,null,null,null,null,null,"カラオケボックス",null,null,null,null,null,null,null,"ボーリング場"]
[null,null,null,null,null,null,null,null,null,"ぱちんこ屋",null,null,null,null,null,null,null,null,"競馬場又は競輪場",null,null,null,null,null,null,null,"社寺"]

{"sheet":"設内（標準）","index":13,"n_rows":41,"n_cols":39,"rows_kept":41,"cut":false,"hidden":false,"merged":[[18,3,18,6],[4,34,5,36],[5,30,5,33],[5,11,5,29],[14,24,14,26],[15,23,15,26],[11,30,11,33],[13,30,13,33],[14,30,14,33],[15,30,15,33],[10,30,10,33],[17,30,17,33],[17,23,17,26],[1,0,1,6],[9,30,9,33],[2,0,2,6],[1,7,1,36],[4,0,5,2],[4,3,5,6],[2,7,2,36],[4,7,4,33],[8,31,8,33],[13,19,13,21],[14,15,14,17],[5,7,5,10],[8,3,8,6],[9,3,9,6],[12,16,12,27],[15,3,15,6],[17,3,17,6],[16,23,16,26],[10,3,10,6],[11,3,11,6],[13,3,13,6],[14,3,14,6],[40,18,40,20],[27,31,27,33],[18,30,18,33],[20,31,20,33],[38,15,38,27],[38,31,38,33],[18,23,18,26],[22,17,22,25],[31,31,31,33],[32,31,32,33],[33,31,33,33]]}
["設計内容説明書（標準入力法）",null,null,null,null,null,null,null,null,null,null,null,null,null,null,null,null,null,null,null,null,null,null,null,null,null,null,null,null,null,null,null,null,null,null,null,{"$f":"IF(AM1=1,\"\",\"モデル建物法の場合、提出不要です\")","v":"モデル建物法の場合、提出不要です"},null,{"$f":"IF('５面'!AR21=TRUE,1,\"\")","v":""}]
["建築物の名称",null,null,null,null,null,null,{"$f":"IF(AM1=1,IF(質疑等連絡票!H5=\"\",\"質疑連絡票に記載がありません\",質疑等連絡票!H5),\"\")","v":""}]
["設計者等氏名",null,null,null,null,null,null,{"$f":"IF(AM1=1,計画書!U17,\"\")","v":""}]
["【基本事項】"]
["確認\n事項",null,null,"確認\n項目",null,null,null,"設計内容説明欄",null,null,null,null,null,null,null,null,null,null,null,null,null,null,null,null,null,null,null,null,null,null,null,null,null,null,"設　計\n内　容\n確認欄"]
[null,null,null,null,null,null,null,"項目",null,null,null,"設計内容",null,null,null,null,null,null,null,null,null,null,null,null,null,null,null,null,null,null,"記載図書"]
["建物の",null,null,"建築物に",null,null,null,"用途",null,null,null,null,"非住宅建築物",null,null,null,null,null,null,null,null,null,"非住宅複合建築物",null,null,null,null,null,null,null,null,"概要書",null,null,"□","適"]
["概要",null,null,"関する事項",null,null,null,null,null,null,null,null,"非住宅・住宅複合建築物",null,null,null,null,null,null,null,null,null,"共同住宅共用部",null,null,null,null,null,null,null,null,"面積表",null,null,"□","否"]
[null,null,null,null,null,null,null,null,null,null,null,"・非住宅部分の具体的な用途"]
[null,null,null,null,null,null,null,null,null,null,null,null,null,"事務所等",null,null,null,null,null,"ホテル等",null,null,null,null,null,"病院等"]
[null,null,null,null,null,null,null,null,null,null,null,null,null,"百貨店等",null,null,null,null,null,"学校等",null,null,null,null,null,"飲食店等"]
[null,null,null,null,null,null,null,null,null,null,null,null,null,"集会所等",null,null,null,null,null,"工場等"]
[null,null,null,null,null,null,null,null,null,null,null,null,null,"その他（",null,null,null,null,null,null,null,null,null,null,null,null,null,null,"）"]
[null,null,null,null,null,null,null,"地域区分",null,null,null,"・建設地の地域区分",null,null,null,null,null,null,"（",{"$f":"IF(AM1=1,IFERROR('３面'!L29,\"\"),\"\")","v":""},null,null,"）","地域"]
[null,null,null,null,null,null,null,"階数",null,null,null,"・地上",null,null,"（",{"$f":"IF(AM1=1,'３面'!N17,\"\")","v":""},null,null,"）","階",null,"地下",null,"（",{"$f":"IF(AM1=1,'３面'!X17,\"\")","v":""},null,null,"）","階"]
[null,null,null,null,null,null,null,"面積",null,null,null,"・延べ面積",null,null,null,null,null,null,null,null,null,null,"（",{"$f":"IF(AM1=1,IFERROR('３面'!J14,\"\"),\"\")","v":""},null,null,null,"）","m2"]
[null,null,null,null,null,null,null,null,null,null,null,"・住宅部分の面積",null,null,null,null,null,null,null,null,null,null,"（",null,null,null,null,"）","m2"]
[null,null,null,null,null,null,null,null,null,null,null,"・高い開放性を有する部分の面積",null,null,null,null,null,null,null,null,null,null,"（",null,null,null,null,"）","m2"]
[null,null,null,null,null,null,null,null,null,null,null,"・計算対象部分の床面積",null,null,null,null,null,null,null,null,null,null,"（",null,null,null,null,"）","m2"]
[null,null,null,"計算方法に",null,null,null,"申請する",null,null,null,"・申請に用いる評価手法",null,null,null,null,null,null,null,null,null,null,null,null,null,null,null,null,null,null,"■","出力ｼｰﾄ",null,null,"□","適"]
[null,null,null,"関する事項",null,null,null,"評価手法",null,null,null,null,null,"標準入力法",null,null,null,null,null,null,null,null,null,null,null,null,null,null,null,null,null,null,null,null,"□","否"]
[null,null,null,null,null,null,null,null,null,null,null,null,null,"主要室入力法"]
[null,null,null,null,null,null,null,null,null,null,null,null,null,"その他",null,null,"（",null,null,null,null,null,null,null,null,null,"）"]
["外皮の",null,null,"外壁の性能",null,null,null,"計算手法等",null,null,null,null,"断熱種別等による入力",null,null,null,null,null,null,null,null,null,null,null,null,null,null,null,null,null,null,"仕様書",null,null,"□","適"]
["概要",null,null,null,null,null,null,null,null,null,null,null,"断熱材の性能及び厚さによる入力",null,null,null,null,null,null,null,null,null,null,null,null,null,null,null,null,null,null,"計算書",null,null,"□","否"]
[null,null,null,null,null,null,null,null,null,null,null,null,"層構成に応じた計算"]
[null,null,null,"窓の性能",null,null,null,"計算手法等",null,null,null,null,"建具・ガラス種別による入力",null,null,null,null,null,null,null,null,null,null,null,null,null,null,null,null,null,null,"仕様書",null,null,"□","適"]
[null,null,null,null,null,null,null,null,null,null,null,null,"建具種別とガラス性能値による入力",null,null,null,null,null,null,null,null,null,null,null,null,null,null,null,null,null,null,null,null,null,"□","否"]
[null,null,null,null,null,null,null,null,null,null,null,null,"窓の性能値による入力"]
["設備の",null,null,"設備の仕様",null,null,null,"対象の有無",null,null,null,"・計算対象空調設備の有無",null,null,null,null,null,null,null,null,null,null,"有り",null,null,null,null,"無し",null,null,"■","出力ｼｰﾄ",null,null,"□","適"]
["概要",null,null,null,null,null,null,null,null,null,null,"・計算対象換気設備の有無",null,null,null,null,null,null,null,null,null,null,"有り",null,null,null,null,"無し",null,null,null,"機器表",null,null,"□","否"]
[null,null,null,null,null,null,null,null,null,null,null,"・計算対象照明設備の有無",null,null,null,null,null,null,null,null,null,null,"有り",null,null,null,null,"無し"]
[null,null,null,null,null,null,null,null,null,null,null,"・計算対象給湯設備の有無",null,null,null,null,null,null,null,null,null,null,"有り",null,null,null,null,"無し"]
[null,null,null,null,null,null,null,null,null,null,null,"・計算対象昇降機の有無",null,null,null,null,null,null,null,null,null,null,"有り",null,null,null,null,"無し"]
[null,null,null,null,null,null,null,null,null,null,null,"・太陽光発電の有無",null,null,null,null,null,null,null,null,null,null,"有り",null,null,null,null,"無し"]
[null,null,null,null,null,null,null,null,null,null,null,null,null,"太陽光発電有りの場合、全量自家消費とする"]
[null,null,null,null,null,null,null,null,null,null,null,null,null,"太陽光発電有りの場合、全量売電を行わない"]
["その他",null,null,null,null,null,null,"任意評定等",null,null,null,"・任意評定等の活用の有無",null,null,null,null,null,null,null,null,null,null,"有り",null,null,null,null,"無し",null,null,"■","評定書",null,null,"□","適"]
[null,null,null,null,null,null,null,"の活用",null,null,null,null,"内容（",null,null,null,null,null,null,null,null,null,null,null,null,null,null,null,"）",null,null,null,null,null,"□","否"]
["計算の結果",null,null,null,null,null,null,"一次エネ",null,null,null,"・一次エネ基準への適否",null,null,null,null,null,null,null,null,null,null,null,null,null,null,null,null,null,null,"■","出力ｼｰﾄ",null,null,"□","適"]
[null,null,null,null,null,null,null,null,null,null,null,null,null,"適合（ＢＥＩ：",null,null,null,null,null,null,null,"）",null,null,null,"不適合",null,null,null,null,null,null,null,null,"□","否"]

{"sheet":"設内（住宅）","index":14,"n_rows":36,"n_cols":39,"rows_kept":36,"cut":false,"hidden":false,"merged":[[1,0,1,6],[1,7,1,36],[2,0,2,6],[2,7,2,36],[4,0,5,2],[4,3,5,6],[4,7,4,33],[4,34,5,36],[5,7,5,10],[5,11,5,29],[12,30,12,33],[5,30,5,33],[8,31,8,33],[8,3,8,6],[9,3,9,6],[16,3,16,6],[17,3,17,6],[10,3,10,6],[12,3,12,6],[12,19,12,21],[13,3,13,6],[13,15,13,17],[13,24,13,26],[13,30,13,33],[14,3,14,6],[14,23,14,26],[14,30,14,33],[19,31,19,33],[25,31,25,33],[29,31,29,33],[30,31,30,33],[15,23,15,26],[16,23,16,26],[16,30,16,33],[17,23,17,26],[17,30,17,33],[35,18,35,20],[6,19,6,21],[11,16,11,27],[33,17,33,18],[33,22,33,23],[26,15,26,26]]}
["設計内容説明書（住宅部分）",null,null,null,null,null,null,null,null,null,null,null,null,null,null,null,null,null,null,null,null,null,null,null,null,null,null,null,null,null,null,null,null,null,null,null,{"$f":"IF(AM1=\"\",\"複合建築物以外は記入不要です。\",\"\")","v":"複合建築物以外は記入不要です。"},null,{"$f":"IF('６面'!AP5=TRUE,1,\"\")","v":""}]
["建築物の名称",null,null,null,null,null,null,{"$f":"IF(AM1=1,IF(質疑等連絡票!H5=\"\",\"質疑連絡票に記載がありません\",質疑等連絡票!H5),\"\")","v":""}]
["設計者等氏名",null,null,null,null,null,null,{"$f":"IF(AM1=1,計画書!U17,\"\")","v":""}]
["【基本事項】"]
["確認\n事項",null,null,"確認\n項目",null,null,null,"設計内容説明欄",null,null,null,null,null,null,null,null,null,null,null,null,null,null,null,null,null,null,null,null,null,null,null,null,null,null,"設　計\n内　容\n確認欄"]
[null,null,null,null,null,null,null,"項目",null,null,null,"設計内容",null,null,null,null,null,null,null,null,null,null,null,null,null,null,null,null,null,null,"記載図書"]
["住宅部分",null,null,"住宅部分の",null,null,null,"用途",null,null,null,"■","住戸部分",null,null,null,"（住戸数",null,null,{"$f":"IF(AM1=1,IFERROR('６面'!K5,\"\"),\"\")","v":""},null,null,"戸）",null,null,null,null,null,null,null,null,"概要書",null,null,"□","適"]
["の概要",null,null,"内容",null,null,null,null,null,null,null,"・住戸部分以外の具体的な用途",null,null,null,null,null,null,null,null,null,null,null,null,null,null,null,null,null,null,null,"面積表",null,null,"□","否"]
[null,null,null,null,null,null,null,null,null,null,null,null,null,"屋内共用廊下",null,null,null,null,null,"屋外共用廊下",null,null,null,null,null,"ロビー等"]
[null,null,null,null,null,null,null,null,null,null,null,null,null,"管理事務所等",null,null,null,null,null,"集会室",null,null,null,null,null,"駐車場"]
[null,null,null,null,null,null,null,null,null,null,null,null,null,"機械室等"]
[null,null,null,null,null,null,null,null,null,null,null,null,null,"その他（",null,null,null,null,null,null,null,null,null,null,null,null,null,null,"）"]
[null,null,null,null,null,null,null,"地域区分",null,null,null,"・建設地の地域区分",null,null,null,null,null,null,"（",{"$f":"IF(AM1=1,IFERROR('３面'!L29,\"\"),\"\")","v":""},null,null,"）","地域"]
[null,null,null,null,null,null,null,"階数",null,null,null,"・地上",null,null,"（",{"$f":"IF(AM1=1,'３面'!N17,\"\")","v":""},null,null,"）","階",null,"地下",null,"（",{"$f":"IF(AM1=1,'３面'!X17,\"\")","v":""},null,null,"）","階"]
[null,null,null,null,null,null,null,"面積",null,null,null,"・延べ面積",null,null,null,null,null,null,null,null,null,null,"（",{"$f":"IF(AM1=1,IFERROR('３面'!J14,\"\"),\"\")","v":""},null,null,null,"）","m2"]
[null,null,null,null,null,null,null,null,null,null,null,"・住宅部分の面積",null,null,null,null,null,null,null,null,null,null,"（",null,null,null,null,"）","m2"]
[null,null,null,null,null,null,null,null,null,null,null,"・高い開放性を有する部分の面積",null,null,null,null,null,null,null,null,null,null,"（",null,null,null,null,"）","m2"]
[null,null,null,null,null,null,null,null,null,null,null,"・計算対象部分の床面積",null,null,null,null,null,null,null,null,null,null,"（",null,null,null,null,"）","m2"]
[null,null,null,"計算方法に",null,null,null,"申請する",null,null,null,"・申請に用いる評価手法",null,null,null,null,null,null,null,null,null,null,null,null,null,null,null,null,null,null,"■","出力ｼｰﾄ",null,null,"□","適"]
[null,null,null,"関する事項",null,null,null,"評価手法",null,null,null,null,"外　　皮（",null,null,null,null,"ＵA値、ηAC値",null,null,null,null,null,null,"仕様規定",null,null,"）",null,null,null,null,null,null,"□","否"]
[null,null,null,null,null,null,null,null,null,null,null,null,"一次エネ（",null,null,null,null,"一次エネ計算",null,null,null,null,null,null,"仕様規定",null,null,"）"]
["外皮の",null,null,"部位の性能",null,null,null,"計算手法等",null,null,null,null,"層構成に応じた計算",null,null,null,null,null,null,null,null,null,null,null,null,null,null,null,null,null,null,"仕様書",null,null,"□","適"]
["概要",null,null,null,null,null,null,null,null,null,null,null,"基準省令別表仕様による",null,null,null,null,null,null,null,null,null,null,null,null,null,null,null,null,null,null,"計算書",null,null,"□","否"]
[null,null,null,null,null,null,null,null,null,null,null,null,"部位別仕様表による"]
[null,null,null,"窓の性能",null,null,null,"計算手法等",null,null,null,null,"窓ごとの計算による性能値入力",null,null,null,null,null,null,null,null,null,null,null,null,null,null,null,null,null,null,"仕様書",null,null,"□","適"]
[null,null,null,null,null,null,null,null,null,null,null,null,"建具とガラス種別による仕様値入力",null,null,null,null,null,null,null,null,null,null,null,null,null,null,null,null,null,null,null,null,null,"□","否"]
[null,null,null,null,null,null,null,null,null,null,null,null,"その他（",null,null,null,null,null,null,null,null,null,null,null,null,null,null,"）"]
["設備の",null,null,"設備の仕様",null,null,null,"対象の有無",null,null,null,"・計算対象空調設備の有無",null,null,null,null,null,null,null,null,null,null,"有り",null,null,null,null,"無し",null,null,"■","出力ｼｰﾄ",null,null,"□","適"]
["概要",null,null,null,null,null,null,null,null,null,null,"・計算対象換気設備の有無",null,null,null,null,null,null,null,null,null,null,"有り",null,null,null,null,"無し",null,null,null,"機器表",null,null,"□","否"]
[null,null,null,null,null,null,null,null,null,null,null,"・計算対象照明設備の有無",null,null,null,null,null,null,null,null,null,null,"有り",null,null,null,null,"無し"]
[null,null,null,null,null,null,null,null,null,null,null,"・計算対象給湯設備の有無",null,null,null,null,null,null,null,null,null,null,"有り",null,null,null,null,"無し"]
[null,null,null,null,null,null,null,null,null,null,null,"・太陽光発電の有無",null,null,null,null,null,null,null,null,null,null,"有り",null,null,null,null,"無し"]
["計算の結果",null,null,null,null,null,null,"外皮",null,null,null,"・外皮基準への適合（複数住戸の場合は最低値）",null,null,null,null,null,null,null,null,null,null,null,null,null,null,null,null,null,null,"■","出力ｼｰﾄ",null,null,"□","適"]
[null,null,null,null,null,null,null,null,null,null,null,null,null,"適合（ＵＡ：",null,null,null,null,null,"、ηAC：",null,null,null,null,"）",null,null,"不適合",null,null,null,null,null,null,"□","否"]
[null,null,null,null,null,null,null,"一次エネ",null,null,null,"・一次エネ基準への適否（複数住戸の場合は最低値）",null,null,null,null,null,null,null,null,null,null,null,null,null,null,null,null,null,null,"■","出力ｼｰﾄ",null,null,"□","適"]
[null,null,null,null,null,null,null,null,null,null,null,null,null,"適合（ＢＥＩ：",null,null,null,null,null,null,null,"）",null,null,null,null,null,"不適合",null,null,null,null,null,null,"□","否"]

{"sheet":"中表紙（計算書用）","index":15,"n_rows":57,"n_cols":16,"rows_kept":57,"cut":false,"hidden":false,"merged":[[53,2,53,3],[54,6,54,7],[19,0,19,8],[56,4,56,7],[43,2,43,3],[44,2,44,3],[44,4,44,7],[45,2,45,3],[45,4,45,7],[54,2,54,3],[56,2,56,3]]}
[]
[]
[]
[]
[]
[]
[]
[]
[]
[]
[]
[]
[]
[]
[]
[]
[]
[]
[]
[{"$f":"IF('５面'!AR21=TRUE,\"標準入力法\",IF('５面'!AT21=TRUE,\"モデル建物法\",\"基準選択\"))&N20","v":"基準選択による計算結果"},null,null,null,null,null,null,null,null,"←第五面計算方法にチェック",null,null,null,"による計算結果"]
[]
[]
[]
[]
[]
[]
[]
[]
[]
[]
[]
[]
[]
[]
[]
[]
[]
[]
[]
[]
[]
[]
[]
[null,null,"計算書ID"]
[null,null,"XML ID"]
[null,null,"再出力コード"]
[]
[]
[]
[]
[]
[]
[]
[null,null,"設計責任者"]
[null,null,{"$f":"'２面'!M20&N55","v":"建築士"},null,{"$f":"'２面'!V20&N57","v":"登録"},{"$f":"O57&'２面'!AH20&'中表紙（計算書用）'!P57","v":"第号"},{"$f":"'２面'!M21","v":""},null,null,"←第二面設計者等より参照",null,null,null,"建築士"]
[]
[null,null,"所属事務所",null,{"$f":"'２面'!L23","v":""},null,null,null,null,null,null,null,null,"登録","第","号"]

{"sheet":"中表紙（計算補足資料）","index":16,"n_rows":57,"n_cols":16,"rows_kept":57,"cut":false,"hidden":false,"merged":[[53,2,53,3],[54,2,54,3],[54,6,54,7],[56,2,56,3],[56,4,56,7],[19,0,19,8],[43,2,43,3],[44,2,44,3],[44,4,44,7],[45,2,45,3],[45,4,45,7]]}
[]
[]
[]
[]
[]
[]
[]
[]
[]
[]
[]
[]
[]
[]
[]
[]
[]
[]
[]
["計算補足資料",null,null,null,null,null,null,null,null,null,null,null,null,"による計算結果"]
[]
[]
[]
[]
[]
[]
[]
[]
[]
[]
[]
[]
[]
[]
[]
[]
[]
[]
[]
[]
[]
[]
[]
[]
[]
[]
[]
[]
[]
[]
[]
[]
[]
[null,null,"設計責任者"]
[null,null,{"$f":"'２面'!M20&N55","v":"建築士"},null,{"$f":"'２面'!V20&N57","v":"登録"},{"$f":"O57&'２面'!AH20&'中表紙（計算補足資料）'!P57","v":"第号"},{"$f":"'２面'!M21","v":""},null,null,"←第二面設計者等より参照",null,null,null,"建築士"]
[]
[null,null,"所属事務所",null,{"$f":"'２面'!L23","v":""},null,null,null,null,null,null,null,null,"登録","第","号"]

{"sheet":"変更計画書","index":17,"n_rows":45,"n_cols":36,"rows_kept":45,"cut":false,"hidden":false,"merged":[[44,1,44,33],[45,1,45,33],[22,14,22,20],[23,14,23,15],[23,17,23,18],[23,20,23,21],[30,3,32,31],[43,0,43,33],[37,2,37,8],[15,20,15,32],[17,1,19,32],[35,1,35,10],[35,11,35,20],[35,21,35,32],[14,20,14,32],[0,0,0,33],[1,0,1,33],[2,0,2,33],[4,28,4,29],[4,31,4,32],[4,25,4,26],[6,0,6,13],[9,20,9,32],[10,19,10,32],[11,20,11,32],[12,20,12,32],[13,19,13,32]]}
["様式第二（第二条第一項関係）（日本工業規格Ａ列４番）"]
["（第一面）"]
["変更計画書"]
[]
[null,null,null,null,null,null,null,null,null,null,null,null,null,null,null,null,null,null,null,null,null,null,null,null,{"$f":"計画書!Y6","v":"令和"},null,null,"年",null,null,"月",null,null,"日"]
[]
["一般財団法人ベターリビング　殿"]
[]
[null,null,null,null,null,null,null,null,null,null,null,null,null,null,null,null,null,null,null,"提出者の住所又は主たる事務所の所在地"]
[null,null,null,null,null,null,null,null,null,null,null,null,null,null,null,null,null,null,null,null,{"$f":"IF(計画書!U11=0,\"計画書を記入してください\",計画書!U11)","v":"計画書を記入してください"}]
[null,null,null,null,null,null,null,null,null,null,null,null,null,null,null,null,null,null,null,"提出者の氏名又は名称\n代表者の氏名"]
[null,null,null,null,null,null,null,null,null,null,null,null,null,null,null,null,null,null,null,null,{"$f":"IF(計画書!U13=0,\"計画書を記入してください\",計画書!U13)","v":"計画書を記入してください"}]
[null,null,null,null,null,null,null,null,null,null,null,null,null,null,null,null,null,null,null,null,{"$f":"IF(計画書!U14=0,\"計画書を記入してください\",計画書!U14)","v":"計画書を記入してください"}]
[null,null,null,null,null,null,null,null,null,null,null,null,null,null,null,null,null,null,null,"設計者氏名"]
[null,null,null,null,null,null,null,null,null,null,null,null,null,null,null,null,null,null,null,null,{"$f":"計画書!U16","v":"２面を記入して下さい"}]
[null,null,null,null,null,null,null,null,null,null,null,null,null,null,null,null,null,null,null,null,{"$f":"計画書!U17","v":"２面を記入して下さい"}]
[]
[null,"　建築物のエネルギー消費性能の向上に関する法律第12条第２項（同法第15条第２項の規定により読み替えて適用される場合を含む。）の規定により、変更後の建築物エネルギー消費性能確保計画を提出します。この計画書及び添付図書に記載の事項は、事実に相違ありません。"]
[]
[]
[]
[null,null,"【計画を変更する建築物の直前の建築物エネルギー消費性能適合性判定】"]
[null,null,"【適合判定通知書番号】",null,null,null,null,null,null,null,null,null,null,"第",null,null,null,null,null,null,null,"号",null,null,null,null,null,null,null,null,null,null,null,null,"←","当初の適合性判定通知書の交付番号を入力して下さい。"]
[null,null,"【適合判定通知書交付年月日】",null,null,null,null,null,null,null,null,null,null,{"$f":"計画書!Y6","v":"令和"},null,null,"年",null,null,"月",null,null,"日",null,null,null,null,null,null,null,null,null,null,null,"←","当初の適合性判定通知書の交付年月日を入力して下さい。"]
[null,null,"【適合判定通知書交付者】",null,null,null,null,null,null,null,null,null,null,"一般財団法人　ベターリビング"]
[null,null,"【計画変更の対象の範囲】"]
[null,null,null,null,"建築物全体"]
[null,null,null,null,"建築物の一部（非住宅部分）"]
[null,null,null,null,"建築物の一部（住宅部分）"]
[null,null,"【計画変更の概要】"]
[]
[]
[]
[]
[null,"（本欄には記入しないでください。）"]
[null,"受付欄",null,null,null,null,null,null,null,null,null,"適合判定通知書番号欄",null,null,null,null,null,null,null,null,null,"決裁欄"]
[null,null,null,null,"年",null,"月",null,"日",null,null,null,null,null,"年",null,"月",null,"日"]
[null,null,"第 CBL-SH-",null,null,null,null,null,null,"号",null,null,"第",null,null,null,null,null,null,"号"]
[null,null,"係員印",null,null,null,null,null,null,null,null,null,"係員印"]
[]
[]
[]
[]
["（注意）"]
[null,"　１．提出者が法人である場合には、代表者の氏名を併せて記載してください。"]

{"sheet":"計画変更通知書","index":18,"n_rows":45,"n_cols":36,"rows_kept":45,"cut":false,"hidden":false,"merged":[[25,20,25,21],[14,20,14,32],[16,20,16,32],[0,0,0,33],[1,0,1,33],[2,0,2,33],[4,28,4,29],[4,31,4,32],[4,25,4,26],[11,25,11,26],[13,20,13,32],[6,0,6,14],[42,0,42,30],[43,0,43,30],[44,0,44,30],[38,2,38,8],[9,24,9,32],[11,28,11,29],[11,31,11,32],[32,3,34,31],[36,1,36,10],[36,11,36,20],[36,21,36,32],[17,20,17,32],[19,1,21,32],[24,14,24,20],[25,14,25,15],[25,17,25,18]]}
["様式第十二（第七条第一項関係）（日本工業規格Ａ列４番）"]
["（第一面）"]
["建築物のエネルギー消費性能の向上に関する法律第13条第２項の規定による計画変更通知書"]
[]
[null,null,null,null,null,null,null,null,null,null,null,null,null,null,null,null,null,null,null,null,null,null,null,null,{"$f":"計画書!Y6","v":"令和"},null,null,"年",null,null,"月",null,null,"日",null,"申請年月日"]
[]
["一般財団法人ベターリビング　殿"]
[]
[]
[null,null,null,null,null,null,null,null,null,null,null,null,null,null,null,null,null,null,null,null,null,null,null,"第",null,null,null,null,null,null,null,null,null,"号","←","文書管理番号（ある場合のみ記入）"]
[]
[null,null,null,null,null,null,null,null,null,null,null,null,null,null,null,null,null,null,null,null,null,null,null,null,{"$f":"計画書!Y6","v":"令和"},null,null,"年",null,null,"月",null,null,"日","←","文書管理番号の発番日（ある場合のみ記入）"]
[]
[null,null,null,null,null,null,null,null,null,null,null,null,null,null,null,null,null,null,null,"通知者官職"]
[]
[]
[null,null,null,null,null,null,null,null,null,null,null,null,null,null,null,null,null,null,null,"設計者氏名",{"$f":"計画書!U16","v":"２面を記入して下さい"}]
[null,null,null,null,null,null,null,null,null,null,null,null,null,null,null,null,null,null,null,null,{"$f":"計画書!U17","v":"２面を記入して下さい"}]
[]
[null,"　建築物のエネルギー消費性能の向上に関する法律第13条第３項（同法第15条第２項の規定により読み替えて適用される場合を含む。）の規定により、建築物エネルギー消費性能確保計画を通知します。"]
[]
[]
[]
[null,null,"【計画を変更する建築物の直前の建築物エネルギー消費性能適合性判定】"]
[null,null,"【適合判定通知書番号】",null,null,null,null,null,null,null,null,null,null,"第",null,null,null,null,null,null,null,"号",null,null,null,null,null,null,null,null,null,null,null,null,"←","当初の適合性判定通知書の交付番号を入力して下さい。"]
[null,null,"【適合判定通知書交付年月日】",null,null,null,null,null,null,null,null,null,null,{"$f":"計画書!Y6","v":"令和"},null,null,"年",null,null,"月",null,null,"日",null,null,null,null,null,null,null,null,null,null,null,"←","当初の適合性判定通知書の交付年月日を入力して下さい。"]
[null,null,"【適合判定通知書交付者】",null,null,null,null,null,null,null,null,null,null,"一般財団法人　ベターリビング"]
[null,null,"【計画変更の対象の範囲】"]
[null,null,null,null,"建築物全体"]
[null,null,null,null,"建築物の一部（非住宅部分）"]
[null,null,null,null,"建築物の一部（住宅部分）"]
[null,null,"【計画変更の概要】"]
[]
[]
[]
[null,"（本欄には記入しないでください。）"]
[null,"受付欄",null,null,null,null,null,null,null,null,null,"適合判定通知書番号欄",null,null,null,null,null,null,null,null,null,"決裁欄"]
[null,null,null,null,"年",null,"月",null,"日",null,null,null,null,null,"年",null,"月",null,"日"]
[null,null,"第 CBL-SH-",null,null,null,null,null,null,"号",null,null,"第",null,null,null,null,null,null,"号"]
[null,null,"係員印",null,null,null,null,null,null,null,null,null,"係員印"]
[]
["（注意）"]
["　１.第二面から第七面までとして別記様式第一の第二面から第七面までに記載すべき事項を記載"]
["　　した書類を添えてください。"]
["　２.別記様式第一の（注意）に準じて記入してください。"]